{"text_format":"3","workbook":"xlsx","n_sheets":6,"sheets":["Πίνακας εργαλείων","Πωλήσεις","Εισόδημα","Έξοδα","Φόροι","Κατηγορίες"],"not_rendered":{"images":1,"defined_names":34},"read":"whole","date_system":"1900"}

{"sheet":"Πίνακας εργαλείων","index":0,"n_rows":20,"n_cols":8,"rows_kept":20,"merged":[[0,2,0,4],[0,6,3,7],[5,1,5,7]]}
[null,"Κατάσταση κερδών και ζημιών","Για τον [μήνας ή έτος] που τελειώνει στις [ημέρα-μήνας-έτος]"]
[null,"Επωνυμία εταιρείας","Δηλωμένο σε χιλιάδες"]
[null,"Τρέχον περιθώριο μικτού κέρδους [L/J]",{"$f":"IFERROR(IF(Σύνολο_μικτού_κέρδους=0,\"-\",Σύνολο_μικτού_κέρδους/Σύνολο_εσόδων_πωλήσεων),\"-\")","v":"-"}]
[null,"Τρέχουσα απόδοση πωλήσεων [T/J]",{"$f":"IFERROR(IF(Καθαρό_κέρδος=0,\"-\",Καθαρό_κέρδος/Σύνολο_εσόδων_πωλήσεων),\"-\")","v":"-"}]
[]
[null,"Μην τροποποιείτε τις κατηγορίες σε αυτό το φύλλο εργασίας γιατί οι τύποι μπορεί να αλλάξουν. Χρησιμοποιήσετε το φύλλο εργασίας \"Κατηγορίες\" για να προσθέσετε κατηγορίες και να ενημερώσετε τα αντίστοιχα φύλλα εργασίας με καταχωρήσεις. Αυτό το φύλλο εργασίας θα ενημερωθεί αυτόματα."]
[null,"Σύνοψη","Σύνολο προηγούμενης περιόδου","Συνολικός προϋπολογισμός","Τρέχον σύνολο\nΠερίοδος","Σύνολο τρέχουσας περιόδου ως ποσοστό των πωλήσεων","Συνολικό ποσοστό μεταβολής από την προηγούμενη περίοδο","Συνολικό ποσοστό μεταβολής από τον προϋπολογισμό"]
[null,"Σύνολο εσόδων πωλήσεων [J]",{"$f":"SUMIFS(ΈσοδαΠωλήσεων[Προηγούμενη περίοδος],ΈσοδαΠωλήσεων[Τύπος εσόδων],\"Έσοδα πωλήσεων\")","v":0},{"$f":"SUMIFS(ΈσοδαΠωλήσεων[Προϋπολογισμός],ΈσοδαΠωλήσεων[Τύπος εσόδων],\"Έσοδα πωλήσεων\")","v":0},{"$f":"SUMIFS(ΈσοδαΠωλήσεων[Τρέχουσα περίοδος],ΈσοδαΠωλήσεων[Τύπος εσόδων],\"Έσοδα πωλήσεων\")","v":0},{"$f":"SUMIFS(ΈσοδαΠωλήσεων[Τρέχουσα περίοδος ως ποσοστό των πωλήσεων],ΈσοδαΠωλήσεων[Τύπος εσόδων],\"Έσοδα πωλήσεων\")","v":{"v":0,"d":"0.00%"}},{"$f":"SUMIFS(ΈσοδαΠωλήσεων[Ποσοστό μεταβολής από την προηγούμενη περίοδο],ΈσοδαΠωλήσεων[Τύπος εσόδων],\"Έσοδα πωλήσεων\")","v":{"v":0,"d":"0.00%"}},{"$f":"SUMIFS(ΈσοδαΠωλήσεων[Ποσοστό μεταβολής από τον προϋπολογισμό],ΈσοδαΠωλήσεων[Τύπος εσόδων],\"Έσοδα πωλήσεων\")","v":{"v":0,"d":"0.00%"}}]
[null,"Σύνολο κόστος πωλήσεων [Κ]",{"$f":"SUMIFS(ΈσοδαΠωλήσεων[Προηγούμενη περίοδος],ΈσοδαΠωλήσεων[Τύπος εσόδων],\"Κόστος πωλήσεων\")","v":0},{"$f":"SUMIFS(ΈσοδαΠωλήσεων[Προϋπολογισμός],ΈσοδαΠωλήσεων[Τύπος εσόδων],\"Κόστος πωλήσεων\")","v":0},{"$f":"SUMIFS(ΈσοδαΠωλήσεων[Τρέχουσα περίοδος],ΈσοδαΠωλήσεων[Τύπος εσόδων],\"Κόστος πωλήσεων\")","v":0},{"$f":"SUMIFS(ΈσοδαΠωλήσεων[Τρέχουσα περίοδος ως ποσοστό των πωλήσεων],ΈσοδαΠωλήσεων[Τύπος εσόδων],\"Κόστος πωλήσεων\")","v":{"v":0,"d":"0.00%"}},{"$f":"SUMIFS(ΈσοδαΠωλήσεων[Ποσοστό μεταβολής από την προηγούμενη περίοδο],ΈσοδαΠωλήσεων[Τύπος εσόδων],\"Κόστος πωλήσεων\")","v":{"v":0,"d":"0.00%"}},{"$f":"SUMIFS(ΈσοδαΠωλήσεων[Ποσοστό μεταβολής από τον προϋπολογισμό],ΈσοδαΠωλήσεων[Τύπος εσόδων],\"Κόστος πωλήσεων\")","v":{"v":0,"d":"0.00%"}}]
[null,"Σύνολο εξόδων πωλήσεων και μάρκετινγκ [Μ]",{"$f":"SUMIFS(ΛειτουργικάΈξοδα[Προηγούμενη περίοδος],ΛειτουργικάΈξοδα[Τύπος εξόδων],\"Πωλήσεις και μάρκετινγκ\")","v":0},{"$f":"SUMIFS(ΛειτουργικάΈξοδα[Προϋπολογισμός],ΛειτουργικάΈξοδα[Τύπος εξόδων],\"Πωλήσεις και μάρκετινγκ\")","v":0},{"$f":"SUMIFS(ΛειτουργικάΈξοδα[Τρέχουσα περίοδος],ΛειτουργικάΈξοδα[Τύπος εξόδων],\"Πωλήσεις και μάρκετινγκ\")","v":0},{"$f":"SUMIFS(ΛειτουργικάΈξοδα[Τρέχουσα περίοδος ως ποσοστό των πωλήσεων],ΛειτουργικάΈξοδα[Τύπος εξόδων],\"Πωλήσεις και μάρκετινγκ\")","v":{"v":0,"d":"0.00%"}},{"$f":"SUMIFS(ΛειτουργικάΈξοδα[Ποσοστό μεταβολής από την προηγούμενη περίοδο],ΛειτουργικάΈξοδα[Τύπος εξόδων],\"Πωλήσεις και μάρκετινγκ\")","v":{"v":0,"d":"0.00%"}},{"$f":"SUMIFS(ΛειτουργικάΈξοδα[Ποσοστό μεταβολής από τον προϋπολογισμό],ΛειτουργικάΈξοδα[Τύπος εξόδων],\"Πωλήσεις και μάρκετινγκ\")","v":{"v":0,"d":"0.00%"}}]
[null,"Σύνολο εξόδων έρευνας και ανάπτυξης [N]",{"$f":"SUMIFS(ΛειτουργικάΈξοδα[Προηγούμενη περίοδος],ΛειτουργικάΈξοδα[Τύπος εξόδων],\"Έρευνα και ανάπτυξη\")","v":0},{"$f":"SUMIFS(ΛειτουργικάΈξοδα[Προϋπολογισμός],ΛειτουργικάΈξοδα[Τύπος εξόδων],\"Έρευνα και ανάπτυξη\")","v":0},{"$f":"SUMIFS(ΛειτουργικάΈξοδα[Τρέχουσα περίοδος],ΛειτουργικάΈξοδα[Τύπος εξόδων],\"Έρευνα και ανάπτυξη\")","v":0},{"$f":"SUMIFS(ΛειτουργικάΈξοδα[Τρέχουσα περίοδος ως ποσοστό των πωλήσεων],ΛειτουργικάΈξοδα[Τύπος εξόδων],\"Έρευνα και ανάπτυξη\")","v":{"v":0,"d":"0.00%"}},{"$f":"SUMIFS(ΛειτουργικάΈξοδα[Ποσοστό μεταβολής από την προηγούμενη περίοδο],ΛειτουργικάΈξοδα[Τύπος εξόδων],\"Έρευνα και ανάπτυξη\")","v":{"v":0,"d":"0.00%"}},{"$f":"SUMIFS(ΛειτουργικάΈξοδα[Ποσοστό μεταβολής από τον προϋπολογισμό],ΛειτουργικάΈξοδα[Τύπος εξόδων],\"Έρευνα και ανάπτυξη\")","v":{"v":0,"d":"0.00%"}}]
[null,"Σύνολο γενικών και διαχειριστικών εξόδων [Ο] ",{"$f":"SUMIFS(ΛειτουργικάΈξοδα[Προηγούμενη περίοδος],ΛειτουργικάΈξοδα[Τύπος εξόδων],\"Γενικά και διαχείριση\")","v":0},{"$f":"SUMIFS(ΛειτουργικάΈξοδα[Προϋπολογισμός],ΛειτουργικάΈξοδα[Τύπος εξόδων],\"Γενικά και διαχείριση\")","v":0},{"$f":"SUMIFS(ΛειτουργικάΈξοδα[Τρέχουσα περίοδος],ΛειτουργικάΈξοδα[Τύπος εξόδων],\"Γενικά και διαχείριση\")","v":0},{"$f":"SUMIFS(ΛειτουργικάΈξοδα[Τρέχουσα περίοδος ως ποσοστό των πωλήσεων],ΛειτουργικάΈξοδα[Τύπος εξόδων],\"Γενικά και διαχείριση\")","v":{"v":0,"d":"0.00%"}},{"$f":"SUMIFS(ΛειτουργικάΈξοδα[Ποσοστό μεταβολής από την προηγούμενη περίοδο],ΛειτουργικάΈξοδα[Τύπος εξόδων],\"Γενικά και διαχείριση\")","v":{"v":0,"d":"0.00%"}},{"$f":"SUMIFS(ΛειτουργικάΈξοδα[Ποσοστό μεταβολής από τον προϋπολογισμό],ΛειτουργικάΈξοδα[Τύπος εξόδων],\"Γενικά και διαχείριση\")","v":{"v":0,"d":"0.00%"}}]
[null,"Σύνολο άλλων λειτουργικών εξόδων [P]",{"$f":"ΛειτουργικάΈξοδα[[#Totals],[Προηγούμενη περίοδος]]-SUM(C10:C12)","v":0},{"$f":"ΛειτουργικάΈξοδα[[#Totals],[Προϋπολογισμός]]-SUM(D10:D12)","v":0},{"$f":"ΛειτουργικάΈξοδα[[#Totals],[Τρέχουσα περίοδος]]-SUM(E10:E12)","v":0},{"$f":"ΛειτουργικάΈξοδα[[#Totals],[Τρέχουσα περίοδος ως ποσοστό των πωλήσεων]]-SUM(F10:F12)","v":{"v":0,"d":"0.00%"}},{"$f":"ΛειτουργικάΈξοδα[[#Totals],[Ποσοστό μεταβολής από την προηγούμενη περίοδο]]-SUM(G10:G12)","v":{"v":0,"d":"0.00%"}},{"$f":"ΛειτουργικάΈξοδα[[#Totals],[Ποσοστό μεταβολής από τον προϋπολογισμό]]-SUM(H10:H12)","v":{"v":0,"d":"0.00%"}}]
[null,"Άλλο εισόδημα [S]",{"$f":"Εισόδημα[[#Totals],[Προηγούμενη περίοδος]]","v":0},{"$f":"Εισόδημα[[#Totals],[Προϋπολογισμός]]","v":0},{"$f":"Εισόδημα[[#Totals],[Τρέχουσα περίοδος]]","v":0},{"$f":"Εισόδημα[[#Totals],[Τρέχουσα περίοδος ως ποσοστό των πωλήσεων]]","v":{"v":0,"d":"0.00%"}},{"$f":"Εισόδημα[[#Totals],[Ποσοστό μεταβολής από την προηγούμενη περίοδο]]","v":{"v":0,"d":"0.00%"}},{"$f":"Εισόδημα[[#Totals],[Ποσοστό μεταβολής από τον προϋπολογισμό]]","v":{"v":0,"d":"0.00%"}}]
[null,"Σύνολο φόρων [Τ]",{"$f":"Φόροι[[#Totals],[Προηγούμενη περίοδος]]","v":0},{"$f":"Φόροι[[#Totals],[Προϋπολογισμός]]","v":0},{"$f":"Φόροι[[#Totals],[Τρέχουσα περίοδος]]","v":0},{"$f":"Φόροι[[#Totals],[Τρέχουσα περίοδος ως ποσοστό των πωλήσεων]]","v":{"v":0,"d":"0.00%"}},{"$f":"Φόροι[[#Totals],[Ποσοστό μεταβολής από την προηγούμενη περίοδο]]","v":{"v":0,"d":"0.00%"}},{"$f":"Φόροι[[#Totals],[Ποσοστό μεταβολής από τον προϋπολογισμό]]","v":{"v":0,"d":"0.00%"}}]
[]
[null,"Μικτό κέρδος [L=J-K]",{"$f":"IFERROR(C8-C9,\"-\")","v":0},{"$f":"IFERROR(D8-D9,\"-\")","v":0},{"$f":"IFERROR(Σύνολο_εσόδων_πωλήσεων-Συνολικό_κόστος_αγορών,\"-\")","v":0},{"$f":"IFERROR(IF(Σύνολο_εσόδων_πωλήσεων=0,\"0.00%\",Σύνολο_μικτού_κέρδους/Σύνολο_εσόδων_πωλήσεων),\"-\")","v":"0.00%"},{"$f":"IFERROR(IF(C17=Σύνολο_μικτού_κέρδους,0,IF(Σύνολο_μικτού_κέρδους>C17,ABS((Σύνολο_μικτού_κέρδους/C17)-1),IF(AND(Σύνολο_μικτού_κέρδους<C17,C17<0),-((Σύνολο_μικτού_κέρδους/C17)-1),(Σύνολο_μικτού_κέρδους/C17)-1))),\"-\")","v":{"v":0,"d":"0.00%"}},{"$f":"IFERROR(IF(D17=Σύνολο_μικτού_κέρδους,0,IF(Σύνολο_μικτού_κέρδους>D17,ABS((Σύνολο_μικτού_κέρδους/D17)-1),IF(AND(Σύνολο_μικτού_κέρδους<D17,D17<0),-((Σύνολο_μικτού_κέρδους/D17)-1),(Σύνολο_μικτού_κέρδους/D17)-1))),\"-\")","v":{"v":0,"d":"0.00%"}}]
[null,"Σύνολο λειτουργικών εξόδων [Q=M+N+O+P]",{"$f":"IFERROR(C10+C11+C12+C13,\"-\")","v":0},{"$f":"IFERROR(D10+D11+D12+D13,\"-\")","v":0},{"$f":"IFERROR(Σύνολο_πωλήσεων_και_μάρκετινγκ+Σύνολο_έρευνας_και_ανάπτυξης+Σύνολο_γενικών_και_διαχειριστικών+Σύνολο_άλλων_εξόδων,\"-\")","v":0},{"$f":"IFERROR(IF(Σύνολο_εσόδων_πωλήσεων=0,\"0.00%\",Σύνολο_λειτουργικών_εξόδων/Σύνολο_εσόδων_πωλήσεων),\"-\")","v":"0.00%"},{"$f":"IFERROR(IF(C18=Σύνολο_λειτουργικών_εξόδων,0,IF(Σύνολο_λειτουργικών_εξόδων>C18,ABS((Σύνολο_λειτουργικών_εξόδων/C18)-1),IF(AND(Σύνολο_λειτουργικών_εξόδων<C18,C18<0),-((Σύνολο_λειτουργικών_εξόδων/C18)-1),(Σύνολο_λειτουργικών_εξόδων/C18)-1))),\"-\")","v":{"v":0,"d":"0.00%"}},{"$f":"IFERROR(IF(D18=Σύνολο_λειτουργικών_εξόδων,0,IF(Σύνολο_λειτουργικών_εξόδων>D18,ABS((Σύνολο_λειτουργικών_εξόδων/D18)-1),IF(AND(Σύνολο_λειτουργικών_εξόδων<D18,D18<0),-((Σύνολο_λειτουργικών_εξόδων/D18)-1),(Σύνολο_λειτουργικών_εξόδων/D18)-1))),\"-\")","v":{"v":0,"d":"0.00%"}}]
[null,"Εισόδημα επιχειρηματικής δραστηριότητας [R=L-Q]",{"$f":"IFERROR(C17-C18,\"-\")","v":0},{"$f":"IFERROR(D17-D18,\"-\")","v":0},{"$f":"IFERROR(Σύνολο_μικτού_κέρδους-Σύνολο_λειτουργικών_εξόδων,\"-\")","v":0},{"$f":"IFERROR(IF(Σύνολο_εσόδων_πωλήσεων=0,\"0.00%\",Σύνολο_εισοδήματος_δραστηριοτήτων/Σύνολο_εσόδων_πωλήσεων),\"-\")","v":"0.00%"},{"$f":"IFERROR(IF(C19=Σύνολο_εισοδήματος_δραστηριοτήτων,0,IF(Σύνολο_εισοδήματος_δραστηριοτήτων>C19,ABS((Σύνολο_εισοδήματος_δραστηριοτήτων/C19)-1),IF(AND(Σύνολο_εισοδήματος_δραστηριοτήτων<C19,C19<0),-((Σύνολο_εισοδήματος_δραστηριοτήτων/C19)-1),(Σύνολο_εισοδήματος_δραστηριοτήτων/C19)-1))),\"-\")","v":{"v":0,"d":"0.00%"}},{"$f":"IFERROR(IF(D19=Σύνολο_εισοδήματος_δραστηριοτήτων,0,IF(Σύνολο_εισοδήματος_δραστηριοτήτων>D19,ABS((Σύνολο_εισοδήματος_δραστηριοτήτων/D19)-1),IF(AND(Σύνολο_εισοδήματος_δραστηριοτήτων<D19,D19<0),-((Σύνολο_εισοδήματος_δραστηριοτήτων/D19)-1),(Σύνολο_εισοδήματος_δραστηριοτήτων/D19)-1))),\"-\")","v":{"v":0,"d":"0.00%"}}]
[null,"Καθαρό κέρδος [U=R+S-T]",{"$f":"IFERROR(C19+C14-C15,\"-\")","v":0},{"$f":"IFERROR(D19+D14-D15,\"-\")","v":0},{"$f":"Σύνολο_εισοδήματος_δραστηριοτήτων+Σύνολο_άλλου_εισοδήματος-Σύνολο_φόρων","v":0},{"$f":"IFERROR(IF(Σύνολο_εσόδων_πωλήσεων=0,\"0.00%\",Καθαρό_κέρδος/Σύνολο_εσόδων_πωλήσεων),\"-\")","v":"0.00%"},{"$f":"IFERROR(IF(C20=Καθαρό_κέρδος,0,IF(Καθαρό_κέρδος>C20,ABS((Καθαρό_κέρδος/C20)-1),IF(AND(Καθαρό_κέρδος<C20,C20<0),-((Καθαρό_κέρδος/C20)-1),(Καθαρό_κέρδος/C20)-1))),\"-\")","v":{"v":0,"d":"0.00%"}},{"$f":"IFERROR(IF(D20=Καθαρό_κέρδος,0,IF(Καθαρό_κέρδος>D20,ABS((Καθαρό_κέρδος/D20)-1),IF(AND(Καθαρό_κέρδος<D20,D20<0),-((Καθαρό_κέρδος/D20)-1),(Καθαρό_κέρδος/D20)-1))),\"-\")","v":{"v":0,"d":"0.00%"}}]

{"sheet":"Πωλήσεις","index":1,"n_rows":13,"n_cols":9,"rows_kept":13,"merged":[[0,7,2,8]]}
[null,{"$f":"Τίτλος_Βιβλίου_εργασίας","v":"Κατάσταση κερδών και ζημιών"}]
[null,{"$f":"Επωνυμία_εταιρείας","v":"Επωνυμία εταιρείας"},"Δηλωμένο σε χιλιάδες"]
[null,"Έσοδα πωλήσεων",{"$f":"IFERROR(Έσοδα_πωλήσεων,\"-\")","v":0}]
[null,"Τύπος εσόδων","Περιγραφή","Προηγούμενη περίοδος","Προϋπολογισμός","Τρέχουσα περίοδος","Τρέχουσα περίοδος ως ποσοστό των πωλήσεων","Ποσοστό μεταβολής από την προηγούμενη περίοδο","Ποσοστό μεταβολής από τον προϋπολογισμό"]
[null,"Έσοδα πωλήσεων","Προϊόν/Υπηρεσία 1",{"$nulls":3},{"$f":"IFERROR(IF(ΈσοδαΠωλήσεων[[#Totals],[Τρέχουσα περίοδος]]=0,\"-\",ΈσοδαΠωλήσεων[[#This Row],[Τρέχουσα περίοδος]]/Έσοδα_πωλήσεων),\"-\")","v":"-"},{"$f":"IFERROR(IF(ΈσοδαΠωλήσεων[[#This Row],[Προηγούμενη περίοδος]]=ΈσοδαΠωλήσεων[[#This Row],[Τρέχουσα περίοδος]],0,IF(ΈσοδαΠωλήσεων[[#This Row],[Τρέχουσα περίοδος]]>ΈσοδαΠωλήσεων[[#This Row],[Προηγούμενη περίοδος]],ABS((ΈσοδαΠωλήσεων[[#This Row],[Τρέχουσα περίοδος]]/ΈσοδαΠωλήσεων[[#This Row],[Προηγούμενη περίοδος]])-1),IF(AND(ΈσοδαΠωλήσεων[[#This Row],[Τρέχουσα περίοδος]]<ΈσοδαΠωλήσεων[[#This Row],[Προηγούμενη περίοδος]],ΈσοδαΠωλήσεων[[#This Row],[Προηγούμενη περίοδος]]<0),-((ΈσοδαΠωλήσεων[[#This Row],[Τρέχουσα περίοδος]]/ΈσοδαΠωλήσεων[[#This Row],[Προηγούμενη περίοδος]])-1),(ΈσοδαΠωλήσεων[[#This Row],[Τρέχουσα περίοδος]]/ΈσοδαΠωλήσεων[[#This Row],[Προηγούμενη περίοδος]])-1))),\"-\")","v":{"v":0,"d":"0.00%"}},{"$f":"IFERROR(IF(ΈσοδαΠωλήσεων[[#This Row],[Προϋπολογισμός]]=ΈσοδαΠωλήσεων[[#This Row],[Τρέχουσα περίοδος]],0,IF(ΈσοδαΠωλήσεων[[#This Row],[Τρέχουσα περίοδος]]>ΈσοδαΠωλήσεων[[#This Row],[Προϋπολογισμός]],ABS((ΈσοδαΠωλήσεων[[#This Row],[Τρέχουσα περίοδος]]/ΈσοδαΠωλήσεων[[#This Row],[Προϋπολογισμός]])-1),IF(AND(ΈσοδαΠωλήσεων[[#This Row],[Τρέχουσα περίοδος]]<ΈσοδαΠωλήσεων[[#This Row],[Προϋπολογισμός]],ΈσοδαΠωλήσεων[[#This Row],[Προϋπολογισμός]]<0),-((ΈσοδαΠωλήσεων[[#This Row],[Τρέχουσα περίοδος]]/ΈσοδαΠωλήσεων[[#This Row],[Προϋπολογισμός]])-1),(ΈσοδαΠωλήσεων[[#This Row],[Τρέχουσα περίοδος]]/ΈσοδαΠωλήσεων[[#This Row],[Προϋπολογισμός]])-1))),\"-\")","v":{"v":0,"d":"0.00%"}}]
[null,"Έσοδα πωλήσεων","Προϊόν/Υπηρεσία 2",{"$nulls":3},{"$f":"IFERROR(IF(ΈσοδαΠωλήσεων[[#Totals],[Τρέχουσα περίοδος]]=0,\"-\",ΈσοδαΠωλήσεων[[#This Row],[Τρέχουσα περίοδος]]/Έσοδα_πωλήσεων),\"-\")","v":"-"},{"$f":"IFERROR(IF(ΈσοδαΠωλήσεων[[#This Row],[Προηγούμενη περίοδος]]=ΈσοδαΠωλήσεων[[#This Row],[Τρέχουσα περίοδος]],0,IF(ΈσοδαΠωλήσεων[[#This Row],[Τρέχουσα περίοδος]]>ΈσοδαΠωλήσεων[[#This Row],[Προηγούμενη περίοδος]],ABS((ΈσοδαΠωλήσεων[[#This Row],[Τρέχουσα περίοδος]]/ΈσοδαΠωλήσεων[[#This Row],[Προηγούμενη περίοδος]])-1),IF(AND(ΈσοδαΠωλήσεων[[#This Row],[Τρέχουσα περίοδος]]<ΈσοδαΠωλήσεων[[#This Row],[Προηγούμενη περίοδος]],ΈσοδαΠωλήσεων[[#This Row],[Προηγούμενη περίοδος]]<0),-((ΈσοδαΠωλήσεων[[#This Row],[Τρέχουσα περίοδος]]/ΈσοδαΠωλήσεων[[#This Row],[Προηγούμενη περίοδος]])-1),(ΈσοδαΠωλήσεων[[#This Row],[Τρέχουσα περίοδος]]/ΈσοδαΠωλήσεων[[#This Row],[Προηγούμενη περίοδος]])-1))),\"-\")","v":{"v":0,"d":"0.00%"}},{"$f":"IFERROR(IF(ΈσοδαΠωλήσεων[[#This Row],[Προϋπολογισμός]]=ΈσοδαΠωλήσεων[[#This Row],[Τρέχουσα περίοδος]],0,IF(ΈσοδαΠωλήσεων[[#This Row],[Τρέχουσα περίοδος]]>ΈσοδαΠωλήσεων[[#This Row],[Προϋπολογισμός]],ABS((ΈσοδαΠωλήσεων[[#This Row],[Τρέχουσα περίοδος]]/ΈσοδαΠωλήσεων[[#This Row],[Προϋπολογισμός]])-1),IF(AND(ΈσοδαΠωλήσεων[[#This Row],[Τρέχουσα περίοδος]]<ΈσοδαΠωλήσεων[[#This Row],[Προϋπολογισμός]],ΈσοδαΠωλήσεων[[#This Row],[Προϋπολογισμός]]<0),-((ΈσοδαΠωλήσεων[[#This Row],[Τρέχουσα περίοδος]]/ΈσοδαΠωλήσεων[[#This Row],[Προϋπολογισμός]])-1),(ΈσοδαΠωλήσεων[[#This Row],[Τρέχουσα περίοδος]]/ΈσοδαΠωλήσεων[[#This Row],[Προϋπολογισμός]])-1))),\"-\")","v":{"v":0,"d":"0.00%"}}]
[null,"Έσοδα πωλήσεων","Προϊόν/Υπηρεσία 3",{"$nulls":3},{"$f":"IFERROR(IF(ΈσοδαΠωλήσεων[[#Totals],[Τρέχουσα περίοδος]]=0,\"-\",ΈσοδαΠωλήσεων[[#This Row],[Τρέχουσα περίοδος]]/Έσοδα_πωλήσεων),\"-\")","v":"-"},{"$f":"IFERROR(IF(ΈσοδαΠωλήσεων[[#This Row],[Προηγούμενη περίοδος]]=ΈσοδαΠωλήσεων[[#This Row],[Τρέχουσα περίοδος]],0,IF(ΈσοδαΠωλήσεων[[#This Row],[Τρέχουσα περίοδος]]>ΈσοδαΠωλήσεων[[#This Row],[Προηγούμενη περίοδος]],ABS((ΈσοδαΠωλήσεων[[#This Row],[Τρέχουσα περίοδος]]/ΈσοδαΠωλήσεων[[#This Row],[Προηγούμενη περίοδος]])-1),IF(AND(ΈσοδαΠωλήσεων[[#This Row],[Τρέχουσα περίοδος]]<ΈσοδαΠωλήσεων[[#This Row],[Προηγούμενη περίοδος]],ΈσοδαΠωλήσεων[[#This Row],[Προηγούμενη περίοδος]]<0),-((ΈσοδαΠωλήσεων[[#This Row],[Τρέχουσα περίοδος]]/ΈσοδαΠωλήσεων[[#This Row],[Προηγούμενη περίοδος]])-1),(ΈσοδαΠωλήσεων[[#This Row],[Τρέχουσα περίοδος]]/ΈσοδαΠωλήσεων[[#This Row],[Προηγούμενη περίοδος]])-1))),\"-\")","v":{"v":0,"d":"0.00%"}},{"$f":"IFERROR(IF(ΈσοδαΠωλήσεων[[#This Row],[Προϋπολογισμός]]=ΈσοδαΠωλήσεων[[#This Row],[Τρέχουσα περίοδος]],0,IF(ΈσοδαΠωλήσεων[[#This Row],[Τρέχουσα περίοδος]]>ΈσοδαΠωλήσεων[[#This Row],[Προϋπολογισμός]],ABS((ΈσοδαΠωλήσεων[[#This Row],[Τρέχουσα περίοδος]]/ΈσοδαΠωλήσεων[[#This Row],[Προϋπολογισμός]])-1),IF(AND(ΈσοδαΠωλήσεων[[#This Row],[Τρέχουσα περίοδος]]<ΈσοδαΠωλήσεων[[#This Row],[Προϋπολογισμός]],ΈσοδαΠωλήσεων[[#This Row],[Προϋπολογισμός]]<0),-((ΈσοδαΠωλήσεων[[#This Row],[Τρέχουσα περίοδος]]/ΈσοδαΠωλήσεων[[#This Row],[Προϋπολογισμός]])-1),(ΈσοδαΠωλήσεων[[#This Row],[Τρέχουσα περίοδος]]/ΈσοδαΠωλήσεων[[#This Row],[Προϋπολογισμός]])-1))),\"-\")","v":{"v":0,"d":"0.00%"}}]
[null,"Έσοδα πωλήσεων","Προϊόν/Υπηρεσία 4",{"$nulls":3},{"$f":"IFERROR(IF(ΈσοδαΠωλήσεων[[#Totals],[Τρέχουσα περίοδος]]=0,\"-\",ΈσοδαΠωλήσεων[[#This Row],[Τρέχουσα περίοδος]]/Έσοδα_πωλήσεων),\"-\")","v":"-"},{"$f":"IFERROR(IF(ΈσοδαΠωλήσεων[[#This Row],[Προηγούμενη περίοδος]]=ΈσοδαΠωλήσεων[[#This Row],[Τρέχουσα περίοδος]],0,IF(ΈσοδαΠωλήσεων[[#This Row],[Τρέχουσα περίοδος]]>ΈσοδαΠωλήσεων[[#This Row],[Προηγούμενη περίοδος]],ABS((ΈσοδαΠωλήσεων[[#This Row],[Τρέχουσα περίοδος]]/ΈσοδαΠωλήσεων[[#This Row],[Προηγούμενη περίοδος]])-1),IF(AND(ΈσοδαΠωλήσεων[[#This Row],[Τρέχουσα περίοδος]]<ΈσοδαΠωλήσεων[[#This Row],[Προηγούμενη περίοδος]],ΈσοδαΠωλήσεων[[#This Row],[Προηγούμενη περίοδος]]<0),-((ΈσοδαΠωλήσεων[[#This Row],[Τρέχουσα περίοδος]]/ΈσοδαΠωλήσεων[[#This Row],[Προηγούμενη περίοδος]])-1),(ΈσοδαΠωλήσεων[[#This Row],[Τρέχουσα περίοδος]]/ΈσοδαΠωλήσεων[[#This Row],[Προηγούμενη περίοδος]])-1))),\"-\")","v":{"v":0,"d":"0.00%"}},{"$f":"IFERROR(IF(ΈσοδαΠωλήσεων[[#This Row],[Προϋπολογισμός]]=ΈσοδαΠωλήσεων[[#This Row],[Τρέχουσα περίοδος]],0,IF(ΈσοδαΠωλήσεων[[#This Row],[Τρέχουσα περίοδος]]>ΈσοδαΠωλήσεων[[#This Row],[Προϋπολογισμός]],ABS((ΈσοδαΠωλήσεων[[#This Row],[Τρέχουσα περίοδος]]/ΈσοδαΠωλήσεων[[#This Row],[Προϋπολογισμός]])-1),IF(AND(ΈσοδαΠωλήσεων[[#This Row],[Τρέχουσα περίοδος]]<ΈσοδαΠωλήσεων[[#This Row],[Προϋπολογισμός]],ΈσοδαΠωλήσεων[[#This Row],[Προϋπολογισμός]]<0),-((ΈσοδαΠωλήσεων[[#This Row],[Τρέχουσα περίοδος]]/ΈσοδαΠωλήσεων[[#This Row],[Προϋπολογισμός]])-1),(ΈσοδαΠωλήσεων[[#This Row],[Τρέχουσα περίοδος]]/ΈσοδαΠωλήσεων[[#This Row],[Προϋπολογισμός]])-1))),\"-\")","v":{"v":0,"d":"0.00%"}}]
[null,"Κόστος πωλήσεων","Προϊόν/Υπηρεσία 1",{"$nulls":3},{"$f":"IFERROR(IF(ΈσοδαΠωλήσεων[[#Totals],[Τρέχουσα περίοδος]]=0,\"-\",ΈσοδαΠωλήσεων[[#This Row],[Τρέχουσα περίοδος]]/Έσοδα_πωλήσεων),\"-\")","v":"-"},{"$f":"IFERROR(IF(ΈσοδαΠωλήσεων[[#This Row],[Προηγούμενη περίοδος]]=ΈσοδαΠωλήσεων[[#This Row],[Τρέχουσα περίοδος]],0,IF(ΈσοδαΠωλήσεων[[#This Row],[Τρέχουσα περίοδος]]>ΈσοδαΠωλήσεων[[#This Row],[Προηγούμενη περίοδος]],ABS((ΈσοδαΠωλήσεων[[#This Row],[Τρέχουσα περίοδος]]/ΈσοδαΠωλήσεων[[#This Row],[Προηγούμενη περίοδος]])-1),IF(AND(ΈσοδαΠωλήσεων[[#This Row],[Τρέχουσα περίοδος]]<ΈσοδαΠωλήσεων[[#This Row],[Προηγούμενη περίοδος]],ΈσοδαΠωλήσεων[[#This Row],[Προηγούμενη περίοδος]]<0),-((ΈσοδαΠωλήσεων[[#This Row],[Τρέχουσα περίοδος]]/ΈσοδαΠωλήσεων[[#This Row],[Προηγούμενη περίοδος]])-1),(ΈσοδαΠωλήσεων[[#This Row],[Τρέχουσα περίοδος]]/ΈσοδαΠωλήσεων[[#This Row],[Προηγούμενη περίοδος]])-1))),\"-\")","v":{"v":0,"d":"0.00%"}},{"$f":"IFERROR(IF(ΈσοδαΠωλήσεων[[#This Row],[Προϋπολογισμός]]=ΈσοδαΠωλήσεων[[#This Row],[Τρέχουσα περίοδος]],0,IF(ΈσοδαΠωλήσεων[[#This Row],[Τρέχουσα περίοδος]]>ΈσοδαΠωλήσεων[[#This Row],[Προϋπολογισμός]],ABS((ΈσοδαΠωλήσεων[[#This Row],[Τρέχουσα περίοδος]]/ΈσοδαΠωλήσεων[[#This Row],[Προϋπολογισμός]])-1),IF(AND(ΈσοδαΠωλήσεων[[#This Row],[Τρέχουσα περίοδος]]<ΈσοδαΠωλήσεων[[#This Row],[Προϋπολογισμός]],ΈσοδαΠωλήσεων[[#This Row],[Προϋπολογισμός]]<0),-((ΈσοδαΠωλήσεων[[#This Row],[Τρέχουσα περίοδος]]/ΈσοδαΠωλήσεων[[#This Row],[Προϋπολογισμός]])-1),(ΈσοδαΠωλήσεων[[#This Row],[Τρέχουσα περίοδος]]/ΈσοδαΠωλήσεων[[#This Row],[Προϋπολογισμός]])-1))),\"-\")","v":{"v":0,"d":"0.00%"}}]
[null,"Κόστος πωλήσεων","Προϊόν/Υπηρεσία 2",{"$nulls":3},{"$f":"IFERROR(IF(ΈσοδαΠωλήσεων[[#Totals],[Τρέχουσα περίοδος]]=0,\"-\",ΈσοδαΠωλήσεων[[#This Row],[Τρέχουσα περίοδος]]/Έσοδα_πωλήσεων),\"-\")","v":"-"},{"$f":"IFERROR(IF(ΈσοδαΠωλήσεων[[#This Row],[Προηγούμενη περίοδος]]=ΈσοδαΠωλήσεων[[#This Row],[Τρέχουσα περίοδος]],0,IF(ΈσοδαΠωλήσεων[[#This Row],[Τρέχουσα περίοδος]]>ΈσοδαΠωλήσεων[[#This Row],[Προηγούμενη περίοδος]],ABS((ΈσοδαΠωλήσεων[[#This Row],[Τρέχουσα περίοδος]]/ΈσοδαΠωλήσεων[[#This Row],[Προηγούμενη περίοδος]])-1),IF(AND(ΈσοδαΠωλήσεων[[#This Row],[Τρέχουσα περίοδος]]<ΈσοδαΠωλήσεων[[#This Row],[Προηγούμενη περίοδος]],ΈσοδαΠωλήσεων[[#This Row],[Προηγούμενη περίοδος]]<0),-((ΈσοδαΠωλήσεων[[#This Row],[Τρέχουσα περίοδος]]/ΈσοδαΠωλήσεων[[#This Row],[Προηγούμενη περίοδος]])-1),(ΈσοδαΠωλήσεων[[#This Row],[Τρέχουσα περίοδος]]/ΈσοδαΠωλήσεων[[#This Row],[Προηγούμενη περίοδος]])-1))),\"-\")","v":{"v":0,"d":"0.00%"}},{"$f":"IFERROR(IF(ΈσοδαΠωλήσεων[[#This Row],[Προϋπολογισμός]]=ΈσοδαΠωλήσεων[[#This Row],[Τρέχουσα περίοδος]],0,IF(ΈσοδαΠωλήσεων[[#This Row],[Τρέχουσα περίοδος]]>ΈσοδαΠωλήσεων[[#This Row],[Προϋπολογισμός]],ABS((ΈσοδαΠωλήσεων[[#This Row],[Τρέχουσα περίοδος]]/ΈσοδαΠωλήσεων[[#This Row],[Προϋπολογισμός]])-1),IF(AND(ΈσοδαΠωλήσεων[[#This Row],[Τρέχουσα περίοδος]]<ΈσοδαΠωλήσεων[[#This Row],[Προϋπολογισμός]],ΈσοδαΠωλήσεων[[#This Row],[Προϋπολογισμός]]<0),-((ΈσοδαΠωλήσεων[[#This Row],[Τρέχουσα περίοδος]]/ΈσοδαΠωλήσεων[[#This Row],[Προϋπολογισμός]])-1),(ΈσοδαΠωλήσεων[[#This Row],[Τρέχουσα περίοδος]]/ΈσοδαΠωλήσεων[[#This Row],[Προϋπολογισμός]])-1))),\"-\")","v":{"v":0,"d":"0.00%"}}]
[null,"Κόστος πωλήσεων","Προϊόν/Υπηρεσία 3",{"$nulls":3},{"$f":"IFERROR(IF(ΈσοδαΠωλήσεων[[#Totals],[Τρέχουσα περίοδος]]=0,\"-\",ΈσοδαΠωλήσεων[[#This Row],[Τρέχουσα περίοδος]]/Έσοδα_πωλήσεων),\"-\")","v":"-"},{"$f":"IFERROR(IF(ΈσοδαΠωλήσεων[[#This Row],[Προηγούμενη περίοδος]]=ΈσοδαΠωλήσεων[[#This Row],[Τρέχουσα περίοδος]],0,IF(ΈσοδαΠωλήσεων[[#This Row],[Τρέχουσα περίοδος]]>ΈσοδαΠωλήσεων[[#This Row],[Προηγούμενη περίοδος]],ABS((ΈσοδαΠωλήσεων[[#This Row],[Τρέχουσα περίοδος]]/ΈσοδαΠωλήσεων[[#This Row],[Προηγούμενη περίοδος]])-1),IF(AND(ΈσοδαΠωλήσεων[[#This Row],[Τρέχουσα περίοδος]]<ΈσοδαΠωλήσεων[[#This Row],[Προηγούμενη περίοδος]],ΈσοδαΠωλήσεων[[#This Row],[Προηγούμενη περίοδος]]<0),-((ΈσοδαΠωλήσεων[[#This Row],[Τρέχουσα περίοδος]]/ΈσοδαΠωλήσεων[[#This Row],[Προηγούμενη περίοδος]])-1),(ΈσοδαΠωλήσεων[[#This Row],[Τρέχουσα περίοδος]]/ΈσοδαΠωλήσεων[[#This Row],[Προηγούμενη περίοδος]])-1))),\"-\")","v":{"v":0,"d":"0.00%"}},{"$f":"IFERROR(IF(ΈσοδαΠωλήσεων[[#This Row],[Προϋπολογισμός]]=ΈσοδαΠωλήσεων[[#This Row],[Τρέχουσα περίοδος]],0,IF(ΈσοδαΠωλήσεων[[#This Row],[Τρέχουσα περίοδος]]>ΈσοδαΠωλήσεων[[#This Row],[Προϋπολογισμός]],ABS((ΈσοδαΠωλήσεων[[#This Row],[Τρέχουσα περίοδος]]/ΈσοδαΠωλήσεων[[#This Row],[Προϋπολογισμός]])-1),IF(AND(ΈσοδαΠωλήσεων[[#This Row],[Τρέχουσα περίοδος]]<ΈσοδαΠωλήσεων[[#This Row],[Προϋπολογισμός]],ΈσοδαΠωλήσεων[[#This Row],[Προϋπολογισμός]]<0),-((ΈσοδαΠωλήσεων[[#This Row],[Τρέχουσα περίοδος]]/ΈσοδαΠωλήσεων[[#This Row],[Προϋπολογισμός]])-1),(ΈσοδαΠωλήσεων[[#This Row],[Τρέχουσα περίοδος]]/ΈσοδαΠωλήσεων[[#This Row],[Προϋπολογισμός]])-1))),\"-\")","v":{"v":0,"d":"0.00%"}}]
[null,"Κόστος πωλήσεων","Προϊόν/Υπηρεσία 4",{"$nulls":3},{"$f":"IFERROR(IF(ΈσοδαΠωλήσεων[[#Totals],[Τρέχουσα περίοδος]]=0,\"-\",ΈσοδαΠωλήσεων[[#This Row],[Τρέχουσα περίοδος]]/Έσοδα_πωλήσεων),\"-\")","v":"-"},{"$f":"IFERROR(IF(ΈσοδαΠωλήσεων[[#This Row],[Προηγούμενη περίοδος]]=ΈσοδαΠωλήσεων[[#This Row],[Τρέχουσα περίοδος]],0,IF(ΈσοδαΠωλήσεων[[#This Row],[Τρέχουσα περίοδος]]>ΈσοδαΠωλήσεων[[#This Row],[Προηγούμενη περίοδος]],ABS((ΈσοδαΠωλήσεων[[#This Row],[Τρέχουσα περίοδος]]/ΈσοδαΠωλήσεων[[#This Row],[Προηγούμενη περίοδος]])-1),IF(AND(ΈσοδαΠωλήσεων[[#This Row],[Τρέχουσα περίοδος]]<ΈσοδαΠωλήσεων[[#This Row],[Προηγούμενη περίοδος]],ΈσοδαΠωλήσεων[[#This Row],[Προηγούμενη περίοδος]]<0),-((ΈσοδαΠωλήσεων[[#This Row],[Τρέχουσα περίοδος]]/ΈσοδαΠωλήσεων[[#This Row],[Προηγούμενη περίοδος]])-1),(ΈσοδαΠωλήσεων[[#This Row],[Τρέχουσα περίοδος]]/ΈσοδαΠωλήσεων[[#This Row],[Προηγούμενη περίοδος]])-1))),\"-\")","v":{"v":0,"d":"0.00%"}},{"$f":"IFERROR(IF(ΈσοδαΠωλήσεων[[#This Row],[Προϋπολογισμός]]=ΈσοδαΠωλήσεων[[#This Row],[Τρέχουσα περίοδος]],0,IF(ΈσοδαΠωλήσεων[[#This Row],[Τρέχουσα περίοδος]]>ΈσοδαΠωλήσεων[[#This Row],[Προϋπολογισμός]],ABS((ΈσοδαΠωλήσεων[[#This Row],[Τρέχουσα περίοδος]]/ΈσοδαΠωλήσεων[[#This Row],[Προϋπολογισμός]])-1),IF(AND(ΈσοδαΠωλήσεων[[#This Row],[Τρέχουσα περίοδος]]<ΈσοδαΠωλήσεων[[#This Row],[Προϋπολογισμός]],ΈσοδαΠωλήσεων[[#This Row],[Προϋπολογισμός]]<0),-((ΈσοδαΠωλήσεων[[#This Row],[Τρέχουσα περίοδος]]/ΈσοδαΠωλήσεων[[#This Row],[Προϋπολογισμός]])-1),(ΈσοδαΠωλήσεων[[#This Row],[Τρέχουσα περίοδος]]/ΈσοδαΠωλήσεων[[#This Row],[Προϋπολογισμός]])-1))),\"-\")","v":{"v":0,"d":"0.00%"}}]
[null,"Σύνολο εσόδων πωλήσεων",null,{"$f":"SUBTOTAL(109,ΈσοδαΠωλήσεων[Προηγούμενη περίοδος])","v":0},{"$f":"SUBTOTAL(109,ΈσοδαΠωλήσεων[Προϋπολογισμός])","v":0},{"$f":"SUBTOTAL(109,ΈσοδαΠωλήσεων[Τρέχουσα περίοδος])","v":0},{"$f":"SUBTOTAL(109,ΈσοδαΠωλήσεων[Τρέχουσα περίοδος ως ποσοστό των πωλήσεων])","v":{"v":0,"d":"0.00%"}},{"$f":"SUBTOTAL(109,ΈσοδαΠωλήσεων[Ποσοστό μεταβολής από την προηγούμενη περίοδο])","v":{"v":0,"d":"0.00%"}},{"$f":"SUBTOTAL(109,ΈσοδαΠωλήσεων[Ποσοστό μεταβολής από τον προϋπολογισμό])","v":{"v":0,"d":"0.00%"}}]

{"sheet":"Εισόδημα","index":2,"n_rows":7,"n_cols":9,"rows_kept":7,"merged":[[0,7,2,8]]}
[null,{"$f":"Τίτλος_Βιβλίου_εργασίας","v":"Κατάσταση κερδών και ζημιών"}]
[null,{"$f":"Επωνυμία_εταιρείας","v":"Επωνυμία εταιρείας"},"Δηλωμένο σε χιλιάδες"]
[null,"Εισόδημα",{"$f":"IFERROR(Εισόδημα[[#Totals],[Τρέχουσα περίοδος]],\"-\")","v":0}]
[null,"Τύπος εισοδήματος","Περιγραφή","Προηγούμενη περίοδος","Προϋπολογισμός","Τρέχουσα περίοδος","Τρέχουσα περίοδος ως ποσοστό των πωλήσεων","Ποσοστό μεταβολής από την προηγούμενη περίοδο","Ποσοστό μεταβολής από τον προϋπολογισμό"]
[null,"Εισόδημα","Άλλο εισόδημα",{"$nulls":3},{"$f":"IFERROR(IF(Έσοδα_πωλήσεων=0,\"-\",Εισόδημα[[#This Row],[Τρέχουσα περίοδος]]/Έσοδα_πωλήσεων),\"-\")","v":"-"},{"$f":"IFERROR(IF(Εισόδημα[[#This Row],[Προηγούμενη περίοδος]]=Εισόδημα[[#This Row],[Τρέχουσα περίοδος]],0,IF(Εισόδημα[[#This Row],[Τρέχουσα περίοδος]]>Εισόδημα[[#This Row],[Προηγούμενη περίοδος]],ABS((Εισόδημα[[#This Row],[Τρέχουσα περίοδος]]/Εισόδημα[[#This Row],[Προηγούμενη περίοδος]])-1),IF(AND(Εισόδημα[[#This Row],[Τρέχουσα περίοδος]]<Εισόδημα[[#This Row],[Προηγούμενη περίοδος]],Εισόδημα[[#This Row],[Προηγούμενη περίοδος]]<0),-((Εισόδημα[[#This Row],[Τρέχουσα περίοδος]]/Εισόδημα[[#This Row],[Προηγούμενη περίοδος]])-1),(Εισόδημα[[#This Row],[Τρέχουσα περίοδος]]/Εισόδημα[[#This Row],[Προηγούμενη περίοδος]])-1))),\"-\")","v":{"v":0,"d":"0.00%"}},{"$f":"IFERROR(IF(Εισόδημα[[#This Row],[Προϋπολογισμός]]=Εισόδημα[[#This Row],[Τρέχουσα περίοδος]],0,IF(Εισόδημα[[#This Row],[Τρέχουσα περίοδος]]>Εισόδημα[[#This Row],[Προϋπολογισμός]],ABS((Εισόδημα[[#This Row],[Τρέχουσα περίοδος]]/Εισόδημα[[#This Row],[Προϋπολογισμός]])-1),IF(AND(Εισόδημα[[#This Row],[Τρέχουσα περίοδος]]<Εισόδημα[[#This Row],[Προϋπολογισμός]],Εισόδημα[[#This Row],[Προϋπολογισμός]]<0),-((Εισόδημα[[#This Row],[Τρέχουσα περίοδος]]/Εισόδημα[[#This Row],[Προϋπολογισμός]])-1),(Εισόδημα[[#This Row],[Τρέχουσα περίοδος]]/Εισόδημα[[#This Row],[Προϋπολογισμός]])-1))),\"-\")","v":{"v":0,"d":"0.00%"}}]
[{"$nulls":6},{"$f":"IFERROR(IF(Έσοδα_πωλήσεων=0,\"-\",Εισόδημα[[#This Row],[Τρέχουσα περίοδος]]/Έσοδα_πωλήσεων),\"-\")","v":"-"},{"$f":"IFERROR(IF(Εισόδημα[[#This Row],[Προηγούμενη περίοδος]]=Εισόδημα[[#This Row],[Τρέχουσα περίοδος]],0,IF(Εισόδημα[[#This Row],[Τρέχουσα περίοδος]]>Εισόδημα[[#This Row],[Προηγούμενη περίοδος]],ABS((Εισόδημα[[#This Row],[Τρέχουσα περίοδος]]/Εισόδημα[[#This Row],[Προηγούμενη περίοδος]])-1),IF(AND(Εισόδημα[[#This Row],[Τρέχουσα περίοδος]]<Εισόδημα[[#This Row],[Προηγούμενη περίοδος]],Εισόδημα[[#This Row],[Προηγούμενη περίοδος]]<0),-((Εισόδημα[[#This Row],[Τρέχουσα περίοδος]]/Εισόδημα[[#This Row],[Προηγούμενη περίοδος]])-1),(Εισόδημα[[#This Row],[Τρέχουσα περίοδος]]/Εισόδημα[[#This Row],[Προηγούμενη περίοδος]])-1))),\"-\")","v":{"v":0,"d":"0.00%"}},{"$f":"IFERROR(IF(Εισόδημα[[#This Row],[Προϋπολογισμός]]=Εισόδημα[[#This Row],[Τρέχουσα περίοδος]],0,IF(Εισόδημα[[#This Row],[Τρέχουσα περίοδος]]>Εισόδημα[[#This Row],[Προϋπολογισμός]],ABS((Εισόδημα[[#This Row],[Τρέχουσα περίοδος]]/Εισόδημα[[#This Row],[Προϋπολογισμός]])-1),IF(AND(Εισόδημα[[#This Row],[Τρέχουσα περίοδος]]<Εισόδημα[[#This Row],[Προϋπολογισμός]],Εισόδημα[[#This Row],[Προϋπολογισμός]]<0),-((Εισόδημα[[#This Row],[Τρέχουσα περίοδος]]/Εισόδημα[[#This Row],[Προϋπολογισμός]])-1),(Εισόδημα[[#This Row],[Τρέχουσα περίοδος]]/Εισόδημα[[#This Row],[Προϋπολογισμός]])-1))),\"-\")","v":{"v":0,"d":"0.00%"}}]
[null,"Συνολικό εισόδημα πωλήσεων",null,{"$f":"SUBTOTAL(109,Εισόδημα[Προηγούμενη περίοδος])","v":0},{"$f":"SUBTOTAL(109,Εισόδημα[Προϋπολογισμός])","v":0},{"$f":"SUBTOTAL(109,Εισόδημα[Τρέχουσα περίοδος])","v":0},{"$f":"SUBTOTAL(109,Εισόδημα[Τρέχουσα περίοδος ως ποσοστό των πωλήσεων])","v":{"v":0,"d":"0.00%"}},{"$f":"SUBTOTAL(109,Εισόδημα[Ποσοστό μεταβολής από την προηγούμενη περίοδο])","v":{"v":0,"d":"0.00%"}},{"$f":"SUBTOTAL(109,Εισόδημα[Ποσοστό μεταβολής από τον προϋπολογισμό])","v":{"v":0,"d":"0.00%"}}]

{"sheet":"Έξοδα","index":3,"n_rows":25,"n_cols":9,"rows_kept":25,"merged":[[0,7,2,8]]}
[null,{"$f":"Τίτλος_Βιβλίου_εργασίας","v":"Κατάσταση κερδών και ζημιών"}]
[null,{"$f":"Επωνυμία_εταιρείας","v":"Επωνυμία εταιρείας"},"Δηλωμένο σε χιλιάδες"]
[null,"Λειτουργικά έξοδα",{"$f":"IFERROR(ΛειτουργικάΈξοδα[[#Totals],[Τρέχουσα περίοδος]],\"-\")","v":0}]
[null,"Τύπος εξόδων","Περιγραφή","Προηγούμενη περίοδος","Προϋπολογισμός","Τρέχουσα περίοδος","Τρέχουσα περίοδος ως ποσοστό των πωλήσεων","Ποσοστό μεταβολής από την προηγούμενη περίοδο","Ποσοστό μεταβολής από τον προϋπολογισμό"]
[null,"Πωλήσεις και μάρκετινγκ","Διαφήμιση",{"$nulls":3},{"$f":"IFERROR(IF(Έσοδα_πωλήσεων=0,\"-\",ΛειτουργικάΈξοδα[[#This Row],[Τρέχουσα περίοδος]]/Έσοδα_πωλήσεων),\"-\")","v":"-"},{"$f":"IFERROR(IF(ΛειτουργικάΈξοδα[[#This Row],[Προηγούμενη περίοδος]]=ΛειτουργικάΈξοδα[[#This Row],[Τρέχουσα περίοδος]],0,IF(ΛειτουργικάΈξοδα[[#This Row],[Τρέχουσα περίοδος]]>ΛειτουργικάΈξοδα[[#This Row],[Προηγούμενη περίοδος]],ABS((ΛειτουργικάΈξοδα[[#This Row],[Τρέχουσα περίοδος]]/ΛειτουργικάΈξοδα[[#This Row],[Προηγούμενη περίοδος]])-1),IF(AND(ΛειτουργικάΈξοδα[[#This Row],[Τρέχουσα περίοδος]]<ΛειτουργικάΈξοδα[[#This Row],[Προηγούμενη περίοδος]],ΛειτουργικάΈξοδα[[#This Row],[Προηγούμενη περίοδος]]<0),-((ΛειτουργικάΈξοδα[[#This Row],[Τρέχουσα περίοδος]]/ΛειτουργικάΈξοδα[[#This Row],[Προηγούμενη περίοδος]])-1),(ΛειτουργικάΈξοδα[[#This Row],[Τρέχουσα περίοδος]]/ΛειτουργικάΈξοδα[[#This Row],[Προηγούμενη περίοδος]])-1))),\"-\")","v":{"v":0,"d":"0.00%"}},{"$f":"IFERROR(IF(ΛειτουργικάΈξοδα[[#This Row],[Προϋπολογισμός]]=ΛειτουργικάΈξοδα[[#This Row],[Τρέχουσα περίοδος]],0,IF(ΛειτουργικάΈξοδα[[#This Row],[Τρέχουσα περίοδος]]>ΛειτουργικάΈξοδα[[#This Row],[Προϋπολογισμός]],ABS((ΛειτουργικάΈξοδα[[#This Row],[Τρέχουσα περίοδος]]/ΛειτουργικάΈξοδα[[#This Row],[Προϋπολογισμός]])-1),IF(AND(ΛειτουργικάΈξοδα[[#This Row],[Τρέχουσα περίοδος]]<ΛειτουργικάΈξοδα[[#This Row],[Προϋπολογισμός]],ΛειτουργικάΈξοδα[[#This Row],[Προϋπολογισμός]]<0),-((ΛειτουργικάΈξοδα[[#This Row],[Τρέχουσα περίοδος]]/ΛειτουργικάΈξοδα[[#This Row],[Προϋπολογισμός]])-1),(ΛειτουργικάΈξοδα[[#This Row],[Τρέχουσα περίοδος]]/ΛειτουργικάΈξοδα[[#This Row],[Προϋπολογισμός]])-1))),\"-\")","v":{"v":0,"d":"0.00%"}}]
[null,"Πωλήσεις και μάρκετινγκ","Απευθείας μάρκετινγκ",{"$nulls":3},{"$f":"IFERROR(IF(Έσοδα_πωλήσεων=0,\"-\",ΛειτουργικάΈξοδα[[#This Row],[Τρέχουσα περίοδος]]/Έσοδα_πωλήσεων),\"-\")","v":"-"},{"$f":"IFERROR(IF(ΛειτουργικάΈξοδα[[#This Row],[Προηγούμενη περίοδος]]=ΛειτουργικάΈξοδα[[#This Row],[Τρέχουσα περίοδος]],0,IF(ΛειτουργικάΈξοδα[[#This Row],[Τρέχουσα περίοδος]]>ΛειτουργικάΈξοδα[[#This Row],[Προηγούμενη περίοδος]],ABS((ΛειτουργικάΈξοδα[[#This Row],[Τρέχουσα περίοδος]]/ΛειτουργικάΈξοδα[[#This Row],[Προηγούμενη περίοδος]])-1),IF(AND(ΛειτουργικάΈξοδα[[#This Row],[Τρέχουσα περίοδος]]<ΛειτουργικάΈξοδα[[#This Row],[Προηγούμενη περίοδος]],ΛειτουργικάΈξοδα[[#This Row],[Προηγούμενη περίοδος]]<0),-((ΛειτουργικάΈξοδα[[#This Row],[Τρέχουσα περίοδος]]/ΛειτουργικάΈξοδα[[#This Row],[Προηγούμενη περίοδος]])-1),(ΛειτουργικάΈξοδα[[#This Row],[Τρέχουσα περίοδος]]/ΛειτουργικάΈξοδα[[#This Row],[Προηγούμενη περίοδος]])-1))),\"-\")","v":{"v":0,"d":"0.00%"}},{"$f":"IFERROR(IF(ΛειτουργικάΈξοδα[[#This Row],[Προϋπολογισμός]]=ΛειτουργικάΈξοδα[[#This Row],[Τρέχουσα περίοδος]],0,IF(ΛειτουργικάΈξοδα[[#This Row],[Τρέχουσα περίοδος]]>ΛειτουργικάΈξοδα[[#This Row],[Προϋπολογισμός]],ABS((ΛειτουργικάΈξοδα[[#This Row],[Τρέχουσα περίοδος]]/ΛειτουργικάΈξοδα[[#This Row],[Προϋπολογισμός]])-1),IF(AND(ΛειτουργικάΈξοδα[[#This Row],[Τρέχουσα περίοδος]]<ΛειτουργικάΈξοδα[[#This Row],[Προϋπολογισμός]],ΛειτουργικάΈξοδα[[#This Row],[Προϋπολογισμός]]<0),-((ΛειτουργικάΈξοδα[[#This Row],[Τρέχουσα περίοδος]]/ΛειτουργικάΈξοδα[[#This Row],[Προϋπολογισμός]])-1),(ΛειτουργικάΈξοδα[[#This Row],[Τρέχουσα περίοδος]]/ΛειτουργικάΈξοδα[[#This Row],[Προϋπολογισμός]])-1))),\"-\")","v":{"v":0,"d":"0.00%"}}]
[null,"Πωλήσεις και μάρκετινγκ","Άλλα έξοδα (προσδιορίστε)",{"$nulls":3},{"$f":"IFERROR(IF(Έσοδα_πωλήσεων=0,\"-\",ΛειτουργικάΈξοδα[[#This Row],[Τρέχουσα περίοδος]]/Έσοδα_πωλήσεων),\"-\")","v":"-"},{"$f":"IFERROR(IF(ΛειτουργικάΈξοδα[[#This Row],[Προηγούμενη περίοδος]]=ΛειτουργικάΈξοδα[[#This Row],[Τρέχουσα περίοδος]],0,IF(ΛειτουργικάΈξοδα[[#This Row],[Τρέχουσα περίοδος]]>ΛειτουργικάΈξοδα[[#This Row],[Προηγούμενη περίοδος]],ABS((ΛειτουργικάΈξοδα[[#This Row],[Τρέχουσα περίοδος]]/ΛειτουργικάΈξοδα[[#This Row],[Προηγούμενη περίοδος]])-1),IF(AND(ΛειτουργικάΈξοδα[[#This Row],[Τρέχουσα περίοδος]]<ΛειτουργικάΈξοδα[[#This Row],[Προηγούμενη περίοδος]],ΛειτουργικάΈξοδα[[#This Row],[Προηγούμενη περίοδος]]<0),-((ΛειτουργικάΈξοδα[[#This Row],[Τρέχουσα περίοδος]]/ΛειτουργικάΈξοδα[[#This Row],[Προηγούμενη περίοδος]])-1),(ΛειτουργικάΈξοδα[[#This Row],[Τρέχουσα περίοδος]]/ΛειτουργικάΈξοδα[[#This Row],[Προηγούμενη περίοδος]])-1))),\"-\")","v":{"v":0,"d":"0.00%"}},{"$f":"IFERROR(IF(ΛειτουργικάΈξοδα[[#This Row],[Προϋπολογισμός]]=ΛειτουργικάΈξοδα[[#This Row],[Τρέχουσα περίοδος]],0,IF(ΛειτουργικάΈξοδα[[#This Row],[Τρέχουσα περίοδος]]>ΛειτουργικάΈξοδα[[#This Row],[Προϋπολογισμός]],ABS((ΛειτουργικάΈξοδα[[#This Row],[Τρέχουσα περίοδος]]/ΛειτουργικάΈξοδα[[#This Row],[Προϋπολογισμός]])-1),IF(AND(ΛειτουργικάΈξοδα[[#This Row],[Τρέχουσα περίοδος]]<ΛειτουργικάΈξοδα[[#This Row],[Προϋπολογισμός]],ΛειτουργικάΈξοδα[[#This Row],[Προϋπολογισμός]]<0),-((ΛειτουργικάΈξοδα[[#This Row],[Τρέχουσα περίοδος]]/ΛειτουργικάΈξοδα[[#This Row],[Προϋπολογισμός]])-1),(ΛειτουργικάΈξοδα[[#This Row],[Τρέχουσα περίοδος]]/ΛειτουργικάΈξοδα[[#This Row],[Προϋπολογισμός]])-1))),\"-\")","v":{"v":0,"d":"0.00%"}}]
[null,"Πωλήσεις και μάρκετινγκ","Άλλα έξοδα (προσδιορίστε)",{"$nulls":3},{"$f":"IFERROR(IF(Έσοδα_πωλήσεων=0,\"-\",ΛειτουργικάΈξοδα[[#This Row],[Τρέχουσα περίοδος]]/Έσοδα_πωλήσεων),\"-\")","v":"-"},{"$f":"IFERROR(IF(ΛειτουργικάΈξοδα[[#This Row],[Προηγούμενη περίοδος]]=ΛειτουργικάΈξοδα[[#This Row],[Τρέχουσα περίοδος]],0,IF(ΛειτουργικάΈξοδα[[#This Row],[Τρέχουσα περίοδος]]>ΛειτουργικάΈξοδα[[#This Row],[Προηγούμενη περίοδος]],ABS((ΛειτουργικάΈξοδα[[#This Row],[Τρέχουσα περίοδος]]/ΛειτουργικάΈξοδα[[#This Row],[Προηγούμενη περίοδος]])-1),IF(AND(ΛειτουργικάΈξοδα[[#This Row],[Τρέχουσα περίοδος]]<ΛειτουργικάΈξοδα[[#This Row],[Προηγούμενη περίοδος]],ΛειτουργικάΈξοδα[[#This Row],[Προηγούμενη περίοδος]]<0),-((ΛειτουργικάΈξοδα[[#This Row],[Τρέχουσα περίοδος]]/ΛειτουργικάΈξοδα[[#This Row],[Προηγούμενη περίοδος]])-1),(ΛειτουργικάΈξοδα[[#This Row],[Τρέχουσα περίοδος]]/ΛειτουργικάΈξοδα[[#This Row],[Προηγούμενη περίοδος]])-1))),\"-\")","v":{"v":0,"d":"0.00%"}},{"$f":"IFERROR(IF(ΛειτουργικάΈξοδα[[#This Row],[Προϋπολογισμός]]=ΛειτουργικάΈξοδα[[#This Row],[Τρέχουσα περίοδος]],0,IF(ΛειτουργικάΈξοδα[[#This Row],[Τρέχουσα περίοδος]]>ΛειτουργικάΈξοδα[[#This Row],[Προϋπολογισμός]],ABS((ΛειτουργικάΈξοδα[[#This Row],[Τρέχουσα περίοδος]]/ΛειτουργικάΈξοδα[[#This Row],[Προϋπολογισμός]])-1),IF(AND(ΛειτουργικάΈξοδα[[#This Row],[Τρέχουσα περίοδος]]<ΛειτουργικάΈξοδα[[#This Row],[Προϋπολογισμός]],ΛειτουργικάΈξοδα[[#This Row],[Προϋπολογισμός]]<0),-((ΛειτουργικάΈξοδα[[#This Row],[Τρέχουσα περίοδος]]/ΛειτουργικάΈξοδα[[#This Row],[Προϋπολογισμός]])-1),(ΛειτουργικάΈξοδα[[#This Row],[Τρέχουσα περίοδος]]/ΛειτουργικάΈξοδα[[#This Row],[Προϋπολογισμός]])-1))),\"-\")","v":{"v":0,"d":"0.00%"}}]
[null,"Έρευνα και ανάπτυξη","Άδειες χρήσης τεχνολογίας",{"$nulls":3},{"$f":"IFERROR(IF(Έσοδα_πωλήσεων=0,\"-\",ΛειτουργικάΈξοδα[[#This Row],[Τρέχουσα περίοδος]]/Έσοδα_πωλήσεων),\"-\")","v":"-"},{"$f":"IFERROR(IF(ΛειτουργικάΈξοδα[[#This Row],[Προηγούμενη περίοδος]]=ΛειτουργικάΈξοδα[[#This Row],[Τρέχουσα περίοδος]],0,IF(ΛειτουργικάΈξοδα[[#This Row],[Τρέχουσα περίοδος]]>ΛειτουργικάΈξοδα[[#This Row],[Προηγούμενη περίοδος]],ABS((ΛειτουργικάΈξοδα[[#This Row],[Τρέχουσα περίοδος]]/ΛειτουργικάΈξοδα[[#This Row],[Προηγούμενη περίοδος]])-1),IF(AND(ΛειτουργικάΈξοδα[[#This Row],[Τρέχουσα περίοδος]]<ΛειτουργικάΈξοδα[[#This Row],[Προηγούμενη περίοδος]],ΛειτουργικάΈξοδα[[#This Row],[Προηγούμενη περίοδος]]<0),-((ΛειτουργικάΈξοδα[[#This Row],[Τρέχουσα περίοδος]]/ΛειτουργικάΈξοδα[[#This Row],[Προηγούμενη περίοδος]])-1),(ΛειτουργικάΈξοδα[[#This Row],[Τρέχουσα περίοδος]]/ΛειτουργικάΈξοδα[[#This Row],[Προηγούμενη περίοδος]])-1))),\"-\")","v":{"v":0,"d":"0.00%"}},{"$f":"IFERROR(IF(ΛειτουργικάΈξοδα[[#This Row],[Προϋπολογισμός]]=ΛειτουργικάΈξοδα[[#This Row],[Τρέχουσα περίοδος]],0,IF(ΛειτουργικάΈξοδα[[#This Row],[Τρέχουσα περίοδος]]>ΛειτουργικάΈξοδα[[#This Row],[Προϋπολογισμός]],ABS((ΛειτουργικάΈξοδα[[#This Row],[Τρέχουσα περίοδος]]/ΛειτουργικάΈξοδα[[#This Row],[Προϋπολογισμός]])-1),IF(AND(ΛειτουργικάΈξοδα[[#This Row],[Τρέχουσα περίοδος]]<ΛειτουργικάΈξοδα[[#This Row],[Προϋπολογισμός]],ΛειτουργικάΈξοδα[[#This Row],[Προϋπολογισμός]]<0),-((ΛειτουργικάΈξοδα[[#This Row],[Τρέχουσα περίοδος]]/ΛειτουργικάΈξοδα[[#This Row],[Προϋπολογισμός]])-1),(ΛειτουργικάΈξοδα[[#This Row],[Τρέχουσα περίοδος]]/ΛειτουργικάΈξοδα[[#This Row],[Προϋπολογισμός]])-1))),\"-\")","v":{"v":0,"d":"0.00%"}}]
[null,"Έρευνα και ανάπτυξη","Ευρεσιτεχνίες ",{"$nulls":3},{"$f":"IFERROR(IF(Έσοδα_πωλήσεων=0,\"-\",ΛειτουργικάΈξοδα[[#This Row],[Τρέχουσα περίοδος]]/Έσοδα_πωλήσεων),\"-\")","v":"-"},{"$f":"IFERROR(IF(ΛειτουργικάΈξοδα[[#This Row],[Προηγούμενη περίοδος]]=ΛειτουργικάΈξοδα[[#This Row],[Τρέχουσα περίοδος]],0,IF(ΛειτουργικάΈξοδα[[#This Row],[Τρέχουσα περίοδος]]>ΛειτουργικάΈξοδα[[#This Row],[Προηγούμενη περίοδος]],ABS((ΛειτουργικάΈξοδα[[#This Row],[Τρέχουσα περίοδος]]/ΛειτουργικάΈξοδα[[#This Row],[Προηγούμενη περίοδος]])-1),IF(AND(ΛειτουργικάΈξοδα[[#This Row],[Τρέχουσα περίοδος]]<ΛειτουργικάΈξοδα[[#This Row],[Προηγούμενη περίοδος]],ΛειτουργικάΈξοδα[[#This Row],[Προηγούμενη περίοδος]]<0),-((ΛειτουργικάΈξοδα[[#This Row],[Τρέχουσα περίοδος]]/ΛειτουργικάΈξοδα[[#This Row],[Προηγούμενη περίοδος]])-1),(ΛειτουργικάΈξοδα[[#This Row],[Τρέχουσα περίοδος]]/ΛειτουργικάΈξοδα[[#This Row],[Προηγούμενη περίοδος]])-1))),\"-\")","v":{"v":0,"d":"0.00%"}},{"$f":"IFERROR(IF(ΛειτουργικάΈξοδα[[#This Row],[Προϋπολογισμός]]=ΛειτουργικάΈξοδα[[#This Row],[Τρέχουσα περίοδος]],0,IF(ΛειτουργικάΈξοδα[[#This Row],[Τρέχουσα περίοδος]]>ΛειτουργικάΈξοδα[[#This Row],[Προϋπολογισμός]],ABS((ΛειτουργικάΈξοδα[[#This Row],[Τρέχουσα περίοδος]]/ΛειτουργικάΈξοδα[[#This Row],[Προϋπολογισμός]])-1),IF(AND(ΛειτουργικάΈξοδα[[#This Row],[Τρέχουσα περίοδος]]<ΛειτουργικάΈξοδα[[#This Row],[Προϋπολογισμός]],ΛειτουργικάΈξοδα[[#This Row],[Προϋπολογισμός]]<0),-((ΛειτουργικάΈξοδα[[#This Row],[Τρέχουσα περίοδος]]/ΛειτουργικάΈξοδα[[#This Row],[Προϋπολογισμός]])-1),(ΛειτουργικάΈξοδα[[#This Row],[Τρέχουσα περίοδος]]/ΛειτουργικάΈξοδα[[#This Row],[Προϋπολογισμός]])-1))),\"-\")","v":{"v":0,"d":"0.00%"}}]
[null,"Έρευνα και ανάπτυξη","Άλλα έξοδα (προσδιορίστε)",{"$nulls":3},{"$f":"IFERROR(IF(Έσοδα_πωλήσεων=0,\"-\",ΛειτουργικάΈξοδα[[#This Row],[Τρέχουσα περίοδος]]/Έσοδα_πωλήσεων),\"-\")","v":"-"},{"$f":"IFERROR(IF(ΛειτουργικάΈξοδα[[#This Row],[Προηγούμενη περίοδος]]=ΛειτουργικάΈξοδα[[#This Row],[Τρέχουσα περίοδος]],0,IF(ΛειτουργικάΈξοδα[[#This Row],[Τρέχουσα περίοδος]]>ΛειτουργικάΈξοδα[[#This Row],[Προηγούμενη περίοδος]],ABS((ΛειτουργικάΈξοδα[[#This Row],[Τρέχουσα περίοδος]]/ΛειτουργικάΈξοδα[[#This Row],[Προηγούμενη περίοδος]])-1),IF(AND(ΛειτουργικάΈξοδα[[#This Row],[Τρέχουσα περίοδος]]<ΛειτουργικάΈξοδα[[#This Row],[Προηγούμενη περίοδος]],ΛειτουργικάΈξοδα[[#This Row],[Προηγούμενη περίοδος]]<0),-((ΛειτουργικάΈξοδα[[#This Row],[Τρέχουσα περίοδος]]/ΛειτουργικάΈξοδα[[#This Row],[Προηγούμενη περίοδος]])-1),(ΛειτουργικάΈξοδα[[#This Row],[Τρέχουσα περίοδος]]/ΛειτουργικάΈξοδα[[#This Row],[Προηγούμενη περίοδος]])-1))),\"-\")","v":{"v":0,"d":"0.00%"}},{"$f":"IFERROR(IF(ΛειτουργικάΈξοδα[[#This Row],[Προϋπολογισμός]]=ΛειτουργικάΈξοδα[[#This Row],[Τρέχουσα περίοδος]],0,IF(ΛειτουργικάΈξοδα[[#This Row],[Τρέχουσα περίοδος]]>ΛειτουργικάΈξοδα[[#This Row],[Προϋπολογισμός]],ABS((ΛειτουργικάΈξοδα[[#This Row],[Τρέχουσα περίοδος]]/ΛειτουργικάΈξοδα[[#This Row],[Προϋπολογισμός]])-1),IF(AND(ΛειτουργικάΈξοδα[[#This Row],[Τρέχουσα περίοδος]]<ΛειτουργικάΈξοδα[[#This Row],[Προϋπολογισμός]],ΛειτουργικάΈξοδα[[#This Row],[Προϋπολογισμός]]<0),-((ΛειτουργικάΈξοδα[[#This Row],[Τρέχουσα περίοδος]]/ΛειτουργικάΈξοδα[[#This Row],[Προϋπολογισμός]])-1),(ΛειτουργικάΈξοδα[[#This Row],[Τρέχουσα περίοδος]]/ΛειτουργικάΈξοδα[[#This Row],[Προϋπολογισμός]])-1))),\"-\")","v":{"v":0,"d":"0.00%"}}]
[null,"Έρευνα και ανάπτυξη","Άλλα έξοδα (προσδιορίστε)",{"$nulls":3},{"$f":"IFERROR(IF(Έσοδα_πωλήσεων=0,\"-\",ΛειτουργικάΈξοδα[[#This Row],[Τρέχουσα περίοδος]]/Έσοδα_πωλήσεων),\"-\")","v":"-"},{"$f":"IFERROR(IF(ΛειτουργικάΈξοδα[[#This Row],[Προηγούμενη περίοδος]]=ΛειτουργικάΈξοδα[[#This Row],[Τρέχουσα περίοδος]],0,IF(ΛειτουργικάΈξοδα[[#This Row],[Τρέχουσα περίοδος]]>ΛειτουργικάΈξοδα[[#This Row],[Προηγούμενη περίοδος]],ABS((ΛειτουργικάΈξοδα[[#This Row],[Τρέχουσα περίοδος]]/ΛειτουργικάΈξοδα[[#This Row],[Προηγούμενη περίοδος]])-1),IF(AND(ΛειτουργικάΈξοδα[[#This Row],[Τρέχουσα περίοδος]]<ΛειτουργικάΈξοδα[[#This Row],[Προηγούμενη περίοδος]],ΛειτουργικάΈξοδα[[#This Row],[Προηγούμενη περίοδος]]<0),-((ΛειτουργικάΈξοδα[[#This Row],[Τρέχουσα περίοδος]]/ΛειτουργικάΈξοδα[[#This Row],[Προηγούμενη περίοδος]])-1),(ΛειτουργικάΈξοδα[[#This Row],[Τρέχουσα περίοδος]]/ΛειτουργικάΈξοδα[[#This Row],[Προηγούμενη περίοδος]])-1))),\"-\")","v":{"v":0,"d":"0.00%"}},{"$f":"IFERROR(IF(ΛειτουργικάΈξοδα[[#This Row],[Προϋπολογισμός]]=ΛειτουργικάΈξοδα[[#This Row],[Τρέχουσα περίοδος]],0,IF(ΛειτουργικάΈξοδα[[#This Row],[Τρέχουσα περίοδος]]>ΛειτουργικάΈξοδα[[#This Row],[Προϋπολογισμός]],ABS((ΛειτουργικάΈξοδα[[#This Row],[Τρέχουσα περίοδος]]/ΛειτουργικάΈξοδα[[#This Row],[Προϋπολογισμός]])-1),IF(AND(ΛειτουργικάΈξοδα[[#This Row],[Τρέχουσα περίοδος]]<ΛειτουργικάΈξοδα[[#This Row],[Προϋπολογισμός]],ΛειτουργικάΈξοδα[[#This Row],[Προϋπολογισμός]]<0),-((ΛειτουργικάΈξοδα[[#This Row],[Τρέχουσα περίοδος]]/ΛειτουργικάΈξοδα[[#This Row],[Προϋπολογισμός]])-1),(ΛειτουργικάΈξοδα[[#This Row],[Τρέχουσα περίοδος]]/ΛειτουργικάΈξοδα[[#This Row],[Προϋπολογισμός]])-1))),\"-\")","v":{"v":0,"d":"0.00%"}}]
[null,"Γενικά και διαχείριση","Αμοιβές και μισθοί",{"$nulls":3},{"$f":"IFERROR(IF(Έσοδα_πωλήσεων=0,\"-\",ΛειτουργικάΈξοδα[[#This Row],[Τρέχουσα περίοδος]]/Έσοδα_πωλήσεων),\"-\")","v":"-"},{"$f":"IFERROR(IF(ΛειτουργικάΈξοδα[[#This Row],[Προηγούμενη περίοδος]]=ΛειτουργικάΈξοδα[[#This Row],[Τρέχουσα περίοδος]],0,IF(ΛειτουργικάΈξοδα[[#This Row],[Τρέχουσα περίοδος]]>ΛειτουργικάΈξοδα[[#This Row],[Προηγούμενη περίοδος]],ABS((ΛειτουργικάΈξοδα[[#This Row],[Τρέχουσα περίοδος]]/ΛειτουργικάΈξοδα[[#This Row],[Προηγούμενη περίοδος]])-1),IF(AND(ΛειτουργικάΈξοδα[[#This Row],[Τρέχουσα περίοδος]]<ΛειτουργικάΈξοδα[[#This Row],[Προηγούμενη περίοδος]],ΛειτουργικάΈξοδα[[#This Row],[Προηγούμενη περίοδος]]<0),-((ΛειτουργικάΈξοδα[[#This Row],[Τρέχουσα περίοδος]]/ΛειτουργικάΈξοδα[[#This Row],[Προηγούμενη περίοδος]])-1),(ΛειτουργικάΈξοδα[[#This Row],[Τρέχουσα περίοδος]]/ΛειτουργικάΈξοδα[[#This Row],[Προηγούμενη περίοδος]])-1))),\"-\")","v":{"v":0,"d":"0.00%"}},{"$f":"IFERROR(IF(ΛειτουργικάΈξοδα[[#This Row],[Προϋπολογισμός]]=ΛειτουργικάΈξοδα[[#This Row],[Τρέχουσα περίοδος]],0,IF(ΛειτουργικάΈξοδα[[#This Row],[Τρέχουσα περίοδος]]>ΛειτουργικάΈξοδα[[#This Row],[Προϋπολογισμός]],ABS((ΛειτουργικάΈξοδα[[#This Row],[Τρέχουσα περίοδος]]/ΛειτουργικάΈξοδα[[#This Row],[Προϋπολογισμός]])-1),IF(AND(ΛειτουργικάΈξοδα[[#This Row],[Τρέχουσα περίοδος]]<ΛειτουργικάΈξοδα[[#This Row],[Προϋπολογισμός]],ΛειτουργικάΈξοδα[[#This Row],[Προϋπολογισμός]]<0),-((ΛειτουργικάΈξοδα[[#This Row],[Τρέχουσα περίοδος]]/ΛειτουργικάΈξοδα[[#This Row],[Προϋπολογισμός]])-1),(ΛειτουργικάΈξοδα[[#This Row],[Τρέχουσα περίοδος]]/ΛειτουργικάΈξοδα[[#This Row],[Προϋπολογισμός]])-1))),\"-\")","v":{"v":0,"d":"0.00%"}}]
[null,"Γενικά και διαχείριση","Εξωτερικές υπηρεσίες",{"$nulls":3},{"$f":"IFERROR(IF(Έσοδα_πωλήσεων=0,\"-\",ΛειτουργικάΈξοδα[[#This Row],[Τρέχουσα περίοδος]]/Έσοδα_πωλήσεων),\"-\")","v":"-"},{"$f":"IFERROR(IF(ΛειτουργικάΈξοδα[[#This Row],[Προηγούμενη περίοδος]]=ΛειτουργικάΈξοδα[[#This Row],[Τρέχουσα περίοδος]],0,IF(ΛειτουργικάΈξοδα[[#This Row],[Τρέχουσα περίοδος]]>ΛειτουργικάΈξοδα[[#This Row],[Προηγούμενη περίοδος]],ABS((ΛειτουργικάΈξοδα[[#This Row],[Τρέχουσα περίοδος]]/ΛειτουργικάΈξοδα[[#This Row],[Προηγούμενη περίοδος]])-1),IF(AND(ΛειτουργικάΈξοδα[[#This Row],[Τρέχουσα περίοδος]]<ΛειτουργικάΈξοδα[[#This Row],[Προηγούμενη περίοδος]],ΛειτουργικάΈξοδα[[#This Row],[Προηγούμενη περίοδος]]<0),-((ΛειτουργικάΈξοδα[[#This Row],[Τρέχουσα περίοδος]]/ΛειτουργικάΈξοδα[[#This Row],[Προηγούμενη περίοδος]])-1),(ΛειτουργικάΈξοδα[[#This Row],[Τρέχουσα περίοδος]]/ΛειτουργικάΈξοδα[[#This Row],[Προηγούμενη περίοδος]])-1))),\"-\")","v":{"v":0,"d":"0.00%"}},{"$f":"IFERROR(IF(ΛειτουργικάΈξοδα[[#This Row],[Προϋπολογισμός]]=ΛειτουργικάΈξοδα[[#This Row],[Τρέχουσα περίοδος]],0,IF(ΛειτουργικάΈξοδα[[#This Row],[Τρέχουσα περίοδος]]>ΛειτουργικάΈξοδα[[#This Row],[Προϋπολογισμός]],ABS((ΛειτουργικάΈξοδα[[#This Row],[Τρέχουσα περίοδος]]/ΛειτουργικάΈξοδα[[#This Row],[Προϋπολογισμός]])-1),IF(AND(ΛειτουργικάΈξοδα[[#This Row],[Τρέχουσα περίοδος]]<ΛειτουργικάΈξοδα[[#This Row],[Προϋπολογισμός]],ΛειτουργικάΈξοδα[[#This Row],[Προϋπολογισμός]]<0),-((ΛειτουργικάΈξοδα[[#This Row],[Τρέχουσα περίοδος]]/ΛειτουργικάΈξοδα[[#This Row],[Προϋπολογισμός]])-1),(ΛειτουργικάΈξοδα[[#This Row],[Τρέχουσα περίοδος]]/ΛειτουργικάΈξοδα[[#This Row],[Προϋπολογισμός]])-1))),\"-\")","v":{"v":0,"d":"0.00%"}}]
[null,"Γενικά και διαχείριση","Προμήθειες",{"$nulls":3},{"$f":"IFERROR(IF(Έσοδα_πωλήσεων=0,\"-\",ΛειτουργικάΈξοδα[[#This Row],[Τρέχουσα περίοδος]]/Έσοδα_πωλήσεων),\"-\")","v":"-"},{"$f":"IFERROR(IF(ΛειτουργικάΈξοδα[[#This Row],[Προηγούμενη περίοδος]]=ΛειτουργικάΈξοδα[[#This Row],[Τρέχουσα περίοδος]],0,IF(ΛειτουργικάΈξοδα[[#This Row],[Τρέχουσα περίοδος]]>ΛειτουργικάΈξοδα[[#This Row],[Προηγούμενη περίοδος]],ABS((ΛειτουργικάΈξοδα[[#This Row],[Τρέχουσα περίοδος]]/ΛειτουργικάΈξοδα[[#This Row],[Προηγούμενη περίοδος]])-1),IF(AND(ΛειτουργικάΈξοδα[[#This Row],[Τρέχουσα περίοδος]]<ΛειτουργικάΈξοδα[[#This Row],[Προηγούμενη περίοδος]],ΛειτουργικάΈξοδα[[#This Row],[Προηγούμενη περίοδος]]<0),-((ΛειτουργικάΈξοδα[[#This Row],[Τρέχουσα περίοδος]]/ΛειτουργικάΈξοδα[[#This Row],[Προηγούμενη περίοδος]])-1),(ΛειτουργικάΈξοδα[[#This Row],[Τρέχουσα περίοδος]]/ΛειτουργικάΈξοδα[[#This Row],[Προηγούμενη περίοδος]])-1))),\"-\")","v":{"v":0,"d":"0.00%"}},{"$f":"IFERROR(IF(ΛειτουργικάΈξοδα[[#This Row],[Προϋπολογισμός]]=ΛειτουργικάΈξοδα[[#This Row],[Τρέχουσα περίοδος]],0,IF(ΛειτουργικάΈξοδα[[#This Row],[Τρέχουσα περίοδος]]>ΛειτουργικάΈξοδα[[#This Row],[Προϋπολογισμός]],ABS((ΛειτουργικάΈξοδα[[#This Row],[Τρέχουσα περίοδος]]/ΛειτουργικάΈξοδα[[#This Row],[Προϋπολογισμός]])-1),IF(AND(ΛειτουργικάΈξοδα[[#This Row],[Τρέχουσα περίοδος]]<ΛειτουργικάΈξοδα[[#This Row],[Προϋπολογισμός]],ΛειτουργικάΈξοδα[[#This Row],[Προϋπολογισμός]]<0),-((ΛειτουργικάΈξοδα[[#This Row],[Τρέχουσα περίοδος]]/ΛειτουργικάΈξοδα[[#This Row],[Προϋπολογισμός]])-1),(ΛειτουργικάΈξοδα[[#This Row],[Τρέχουσα περίοδος]]/ΛειτουργικάΈξοδα[[#This Row],[Προϋπολογισμός]])-1))),\"-\")","v":{"v":0,"d":"0.00%"}}]
[null,"Γενικά και διαχείριση","Εστιατόριο και ψυχαγωγία",{"$nulls":3},{"$f":"IFERROR(IF(Έσοδα_πωλήσεων=0,\"-\",ΛειτουργικάΈξοδα[[#This Row],[Τρέχουσα περίοδος]]/Έσοδα_πωλήσεων),\"-\")","v":"-"},{"$f":"IFERROR(IF(ΛειτουργικάΈξοδα[[#This Row],[Προηγούμενη περίοδος]]=ΛειτουργικάΈξοδα[[#This Row],[Τρέχουσα περίοδος]],0,IF(ΛειτουργικάΈξοδα[[#This Row],[Τρέχουσα περίοδος]]>ΛειτουργικάΈξοδα[[#This Row],[Προηγούμενη περίοδος]],ABS((ΛειτουργικάΈξοδα[[#This Row],[Τρέχουσα περίοδος]]/ΛειτουργικάΈξοδα[[#This Row],[Προηγούμενη περίοδος]])-1),IF(AND(ΛειτουργικάΈξοδα[[#This Row],[Τρέχουσα περίοδος]]<ΛειτουργικάΈξοδα[[#This Row],[Προηγούμενη περίοδος]],ΛειτουργικάΈξοδα[[#This Row],[Προηγούμενη περίοδος]]<0),-((ΛειτουργικάΈξοδα[[#This Row],[Τρέχουσα περίοδος]]/ΛειτουργικάΈξοδα[[#This Row],[Προηγούμενη περίοδος]])-1),(ΛειτουργικάΈξοδα[[#This Row],[Τρέχουσα περίοδος]]/ΛειτουργικάΈξοδα[[#This Row],[Προηγούμενη περίοδος]])-1))),\"-\")","v":{"v":0,"d":"0.00%"}},{"$f":"IFERROR(IF(ΛειτουργικάΈξοδα[[#This Row],[Προϋπολογισμός]]=ΛειτουργικάΈξοδα[[#This Row],[Τρέχουσα περίοδος]],0,IF(ΛειτουργικάΈξοδα[[#This Row],[Τρέχουσα περίοδος]]>ΛειτουργικάΈξοδα[[#This Row],[Προϋπολογισμός]],ABS((ΛειτουργικάΈξοδα[[#This Row],[Τρέχουσα περίοδος]]/ΛειτουργικάΈξοδα[[#This Row],[Προϋπολογισμός]])-1),IF(AND(ΛειτουργικάΈξοδα[[#This Row],[Τρέχουσα περίοδος]]<ΛειτουργικάΈξοδα[[#This Row],[Προϋπολογισμός]],ΛειτουργικάΈξοδα[[#This Row],[Προϋπολογισμός]]<0),-((ΛειτουργικάΈξοδα[[#This Row],[Τρέχουσα περίοδος]]/ΛειτουργικάΈξοδα[[#This Row],[Προϋπολογισμός]])-1),(ΛειτουργικάΈξοδα[[#This Row],[Τρέχουσα περίοδος]]/ΛειτουργικάΈξοδα[[#This Row],[Προϋπολογισμός]])-1))),\"-\")","v":{"v":0,"d":"0.00%"}}]
[null,"Γενικά και διαχείριση","Ενοίκιο",{"$nulls":3},{"$f":"IFERROR(IF(Έσοδα_πωλήσεων=0,\"-\",ΛειτουργικάΈξοδα[[#This Row],[Τρέχουσα περίοδος]]/Έσοδα_πωλήσεων),\"-\")","v":"-"},{"$f":"IFERROR(IF(ΛειτουργικάΈξοδα[[#This Row],[Προηγούμενη περίοδος]]=ΛειτουργικάΈξοδα[[#This Row],[Τρέχουσα περίοδος]],0,IF(ΛειτουργικάΈξοδα[[#This Row],[Τρέχουσα περίοδος]]>ΛειτουργικάΈξοδα[[#This Row],[Προηγούμενη περίοδος]],ABS((ΛειτουργικάΈξοδα[[#This Row],[Τρέχουσα περίοδος]]/ΛειτουργικάΈξοδα[[#This Row],[Προηγούμενη περίοδος]])-1),IF(AND(ΛειτουργικάΈξοδα[[#This Row],[Τρέχουσα περίοδος]]<ΛειτουργικάΈξοδα[[#This Row],[Προηγούμενη περίοδος]],ΛειτουργικάΈξοδα[[#This Row],[Προηγούμενη περίοδος]]<0),-((ΛειτουργικάΈξοδα[[#This Row],[Τρέχουσα περίοδος]]/ΛειτουργικάΈξοδα[[#This Row],[Προηγούμενη περίοδος]])-1),(ΛειτουργικάΈξοδα[[#This Row],[Τρέχουσα περίοδος]]/ΛειτουργικάΈξοδα[[#This Row],[Προηγούμενη περίοδος]])-1))),\"-\")","v":{"v":0,"d":"0.00%"}},{"$f":"IFERROR(IF(ΛειτουργικάΈξοδα[[#This Row],[Προϋπολογισμός]]=ΛειτουργικάΈξοδα[[#This Row],[Τρέχουσα περίοδος]],0,IF(ΛειτουργικάΈξοδα[[#This Row],[Τρέχουσα περίοδος]]>ΛειτουργικάΈξοδα[[#This Row],[Προϋπολογισμός]],ABS((ΛειτουργικάΈξοδα[[#This Row],[Τρέχουσα περίοδος]]/ΛειτουργικάΈξοδα[[#This Row],[Προϋπολογισμός]])-1),IF(AND(ΛειτουργικάΈξοδα[[#This Row],[Τρέχουσα περίοδος]]<ΛειτουργικάΈξοδα[[#This Row],[Προϋπολογισμός]],ΛειτουργικάΈξοδα[[#This Row],[Προϋπολογισμός]]<0),-((ΛειτουργικάΈξοδα[[#This Row],[Τρέχουσα περίοδος]]/ΛειτουργικάΈξοδα[[#This Row],[Προϋπολογισμός]])-1),(ΛειτουργικάΈξοδα[[#This Row],[Τρέχουσα περίοδος]]/ΛειτουργικάΈξοδα[[#This Row],[Προϋπολογισμός]])-1))),\"-\")","v":{"v":0,"d":"0.00%"}}]
[null,"Γενικά και διαχείριση","Τηλέφωνο",{"$nulls":3},{"$f":"IFERROR(IF(Έσοδα_πωλήσεων=0,\"-\",ΛειτουργικάΈξοδα[[#This Row],[Τρέχουσα περίοδος]]/Έσοδα_πωλήσεων),\"-\")","v":"-"},{"$f":"IFERROR(IF(ΛειτουργικάΈξοδα[[#This Row],[Προηγούμενη περίοδος]]=ΛειτουργικάΈξοδα[[#This Row],[Τρέχουσα περίοδος]],0,IF(ΛειτουργικάΈξοδα[[#This Row],[Τρέχουσα περίοδος]]>ΛειτουργικάΈξοδα[[#This Row],[Προηγούμενη περίοδος]],ABS((ΛειτουργικάΈξοδα[[#This Row],[Τρέχουσα περίοδος]]/ΛειτουργικάΈξοδα[[#This Row],[Προηγούμενη περίοδος]])-1),IF(AND(ΛειτουργικάΈξοδα[[#This Row],[Τρέχουσα περίοδος]]<ΛειτουργικάΈξοδα[[#This Row],[Προηγούμενη περίοδος]],ΛειτουργικάΈξοδα[[#This Row],[Προηγούμενη περίοδος]]<0),-((ΛειτουργικάΈξοδα[[#This Row],[Τρέχουσα περίοδος]]/ΛειτουργικάΈξοδα[[#This Row],[Προηγούμενη περίοδος]])-1),(ΛειτουργικάΈξοδα[[#This Row],[Τρέχουσα περίοδος]]/ΛειτουργικάΈξοδα[[#This Row],[Προηγούμενη περίοδος]])-1))),\"-\")","v":{"v":0,"d":"0.00%"}},{"$f":"IFERROR(IF(ΛειτουργικάΈξοδα[[#This Row],[Προϋπολογισμός]]=ΛειτουργικάΈξοδα[[#This Row],[Τρέχουσα περίοδος]],0,IF(ΛειτουργικάΈξοδα[[#This Row],[Τρέχουσα περίοδος]]>ΛειτουργικάΈξοδα[[#This Row],[Προϋπολογισμός]],ABS((ΛειτουργικάΈξοδα[[#This Row],[Τρέχουσα περίοδος]]/ΛειτουργικάΈξοδα[[#This Row],[Προϋπολογισμός]])-1),IF(AND(ΛειτουργικάΈξοδα[[#This Row],[Τρέχουσα περίοδος]]<ΛειτουργικάΈξοδα[[#This Row],[Προϋπολογισμός]],ΛειτουργικάΈξοδα[[#This Row],[Προϋπολογισμός]]<0),-((ΛειτουργικάΈξοδα[[#This Row],[Τρέχουσα περίοδος]]/ΛειτουργικάΈξοδα[[#This Row],[Προϋπολογισμός]])-1),(ΛειτουργικάΈξοδα[[#This Row],[Τρέχουσα περίοδος]]/ΛειτουργικάΈξοδα[[#This Row],[Προϋπολογισμός]])-1))),\"-\")","v":{"v":0,"d":"0.00%"}}]
[null,"Γενικά και διαχείριση","Υπηρεσίες κοινής ωφελείας",{"$nulls":3},{"$f":"IFERROR(IF(Έσοδα_πωλήσεων=0,\"-\",ΛειτουργικάΈξοδα[[#This Row],[Τρέχουσα περίοδος]]/Έσοδα_πωλήσεων),\"-\")","v":"-"},{"$f":"IFERROR(IF(ΛειτουργικάΈξοδα[[#This Row],[Προηγούμενη περίοδος]]=ΛειτουργικάΈξοδα[[#This Row],[Τρέχουσα περίοδος]],0,IF(ΛειτουργικάΈξοδα[[#This Row],[Τρέχουσα περίοδος]]>ΛειτουργικάΈξοδα[[#This Row],[Προηγούμενη περίοδος]],ABS((ΛειτουργικάΈξοδα[[#This Row],[Τρέχουσα περίοδος]]/ΛειτουργικάΈξοδα[[#This Row],[Προηγούμενη περίοδος]])-1),IF(AND(ΛειτουργικάΈξοδα[[#This Row],[Τρέχουσα περίοδος]]<ΛειτουργικάΈξοδα[[#This Row],[Προηγούμενη περίοδος]],ΛειτουργικάΈξοδα[[#This Row],[Προηγούμενη περίοδος]]<0),-((ΛειτουργικάΈξοδα[[#This Row],[Τρέχουσα περίοδος]]/ΛειτουργικάΈξοδα[[#This Row],[Προηγούμενη περίοδος]])-1),(ΛειτουργικάΈξοδα[[#This Row],[Τρέχουσα περίοδος]]/ΛειτουργικάΈξοδα[[#This Row],[Προηγούμενη περίοδος]])-1))),\"-\")","v":{"v":0,"d":"0.00%"}},{"$f":"IFERROR(IF(ΛειτουργικάΈξοδα[[#This Row],[Προϋπολογισμός]]=ΛειτουργικάΈξοδα[[#This Row],[Τρέχουσα περίοδος]],0,IF(ΛειτουργικάΈξοδα[[#This Row],[Τρέχουσα περίοδος]]>ΛειτουργικάΈξοδα[[#This Row],[Προϋπολογισμός]],ABS((ΛειτουργικάΈξοδα[[#This Row],[Τρέχουσα περίοδος]]/ΛειτουργικάΈξοδα[[#This Row],[Προϋπολογισμός]])-1),IF(AND(ΛειτουργικάΈξοδα[[#This Row],[Τρέχουσα περίοδος]]<ΛειτουργικάΈξοδα[[#This Row],[Προϋπολογισμός]],ΛειτουργικάΈξοδα[[#This Row],[Προϋπολογισμός]]<0),-((ΛειτουργικάΈξοδα[[#This Row],[Τρέχουσα περίοδος]]/ΛειτουργικάΈξοδα[[#This Row],[Προϋπολογισμός]])-1),(ΛειτουργικάΈξοδα[[#This Row],[Τρέχουσα περίοδος]]/ΛειτουργικάΈξοδα[[#This Row],[Προϋπολογισμός]])-1))),\"-\")","v":{"v":0,"d":"0.00%"}}]
[null,"Γενικά και διαχείριση","Αποσβέσεις",{"$nulls":3},{"$f":"IFERROR(IF(Έσοδα_πωλήσεων=0,\"-\",ΛειτουργικάΈξοδα[[#This Row],[Τρέχουσα περίοδος]]/Έσοδα_πωλήσεων),\"-\")","v":"-"},{"$f":"IFERROR(IF(ΛειτουργικάΈξοδα[[#This Row],[Προηγούμενη περίοδος]]=ΛειτουργικάΈξοδα[[#This Row],[Τρέχουσα περίοδος]],0,IF(ΛειτουργικάΈξοδα[[#This Row],[Τρέχουσα περίοδος]]>ΛειτουργικάΈξοδα[[#This Row],[Προηγούμενη περίοδος]],ABS((ΛειτουργικάΈξοδα[[#This Row],[Τρέχουσα περίοδος]]/ΛειτουργικάΈξοδα[[#This Row],[Προηγούμενη περίοδος]])-1),IF(AND(ΛειτουργικάΈξοδα[[#This Row],[Τρέχουσα περίοδος]]<ΛειτουργικάΈξοδα[[#This Row],[Προηγούμενη περίοδος]],ΛειτουργικάΈξοδα[[#This Row],[Προηγούμενη περίοδος]]<0),-((ΛειτουργικάΈξοδα[[#This Row],[Τρέχουσα περίοδος]]/ΛειτουργικάΈξοδα[[#This Row],[Προηγούμενη περίοδος]])-1),(ΛειτουργικάΈξοδα[[#This Row],[Τρέχουσα περίοδος]]/ΛειτουργικάΈξοδα[[#This Row],[Προηγούμενη περίοδος]])-1))),\"-\")","v":{"v":0,"d":"0.00%"}},{"$f":"IFERROR(IF(ΛειτουργικάΈξοδα[[#This Row],[Προϋπολογισμός]]=ΛειτουργικάΈξοδα[[#This Row],[Τρέχουσα περίοδος]],0,IF(ΛειτουργικάΈξοδα[[#This Row],[Τρέχουσα περίοδος]]>ΛειτουργικάΈξοδα[[#This Row],[Προϋπολογισμός]],ABS((ΛειτουργικάΈξοδα[[#This Row],[Τρέχουσα περίοδος]]/ΛειτουργικάΈξοδα[[#This Row],[Προϋπολογισμός]])-1),IF(AND(ΛειτουργικάΈξοδα[[#This Row],[Τρέχουσα περίοδος]]<ΛειτουργικάΈξοδα[[#This Row],[Προϋπολογισμός]],ΛειτουργικάΈξοδα[[#This Row],[Προϋπολογισμός]]<0),-((ΛειτουργικάΈξοδα[[#This Row],[Τρέχουσα περίοδος]]/ΛειτουργικάΈξοδα[[#This Row],[Προϋπολογισμός]])-1),(ΛειτουργικάΈξοδα[[#This Row],[Τρέχουσα περίοδος]]/ΛειτουργικάΈξοδα[[#This Row],[Προϋπολογισμός]])-1))),\"-\")","v":{"v":0,"d":"0.00%"}}]
[null,"Γενικά και διαχείριση","Ασφάλιση",{"$nulls":3},{"$f":"IFERROR(IF(Έσοδα_πωλήσεων=0,\"-\",ΛειτουργικάΈξοδα[[#This Row],[Τρέχουσα περίοδος]]/Έσοδα_πωλήσεων),\"-\")","v":"-"},{"$f":"IFERROR(IF(ΛειτουργικάΈξοδα[[#This Row],[Προηγούμενη περίοδος]]=ΛειτουργικάΈξοδα[[#This Row],[Τρέχουσα περίοδος]],0,IF(ΛειτουργικάΈξοδα[[#This Row],[Τρέχουσα περίοδος]]>ΛειτουργικάΈξοδα[[#This Row],[Προηγούμενη περίοδος]],ABS((ΛειτουργικάΈξοδα[[#This Row],[Τρέχουσα περίοδος]]/ΛειτουργικάΈξοδα[[#This Row],[Προηγούμενη περίοδος]])-1),IF(AND(ΛειτουργικάΈξοδα[[#This Row],[Τρέχουσα περίοδος]]<ΛειτουργικάΈξοδα[[#This Row],[Προηγούμενη περίοδος]],ΛειτουργικάΈξοδα[[#This Row],[Προηγούμενη περίοδος]]<0),-((ΛειτουργικάΈξοδα[[#This Row],[Τρέχουσα περίοδος]]/ΛειτουργικάΈξοδα[[#This Row],[Προηγούμενη περίοδος]])-1),(ΛειτουργικάΈξοδα[[#This Row],[Τρέχουσα περίοδος]]/ΛειτουργικάΈξοδα[[#This Row],[Προηγούμενη περίοδος]])-1))),\"-\")","v":{"v":0,"d":"0.00%"}},{"$f":"IFERROR(IF(ΛειτουργικάΈξοδα[[#This Row],[Προϋπολογισμός]]=ΛειτουργικάΈξοδα[[#This Row],[Τρέχουσα περίοδος]],0,IF(ΛειτουργικάΈξοδα[[#This Row],[Τρέχουσα περίοδος]]>ΛειτουργικάΈξοδα[[#This Row],[Προϋπολογισμός]],ABS((ΛειτουργικάΈξοδα[[#This Row],[Τρέχουσα περίοδος]]/ΛειτουργικάΈξοδα[[#This Row],[Προϋπολογισμός]])-1),IF(AND(ΛειτουργικάΈξοδα[[#This Row],[Τρέχουσα περίοδος]]<ΛειτουργικάΈξοδα[[#This Row],[Προϋπολογισμός]],ΛειτουργικάΈξοδα[[#This Row],[Προϋπολογισμός]]<0),-((ΛειτουργικάΈξοδα[[#This Row],[Τρέχουσα περίοδος]]/ΛειτουργικάΈξοδα[[#This Row],[Προϋπολογισμός]])-1),(ΛειτουργικάΈξοδα[[#This Row],[Τρέχουσα περίοδος]]/ΛειτουργικάΈξοδα[[#This Row],[Προϋπολογισμός]])-1))),\"-\")","v":{"v":0,"d":"0.00%"}}]
[null,"Γενικά και διαχείριση","Επισκευές και συντήρηση",{"$nulls":3},{"$f":"IFERROR(IF(Έσοδα_πωλήσεων=0,\"-\",ΛειτουργικάΈξοδα[[#This Row],[Τρέχουσα περίοδος]]/Έσοδα_πωλήσεων),\"-\")","v":"-"},{"$f":"IFERROR(IF(ΛειτουργικάΈξοδα[[#This Row],[Προηγούμενη περίοδος]]=ΛειτουργικάΈξοδα[[#This Row],[Τρέχουσα περίοδος]],0,IF(ΛειτουργικάΈξοδα[[#This Row],[Τρέχουσα περίοδος]]>ΛειτουργικάΈξοδα[[#This Row],[Προηγούμενη περίοδος]],ABS((ΛειτουργικάΈξοδα[[#This Row],[Τρέχουσα περίοδος]]/ΛειτουργικάΈξοδα[[#This Row],[Προηγούμενη περίοδος]])-1),IF(AND(ΛειτουργικάΈξοδα[[#This Row],[Τρέχουσα περίοδος]]<ΛειτουργικάΈξοδα[[#This Row],[Προηγούμενη περίοδος]],ΛειτουργικάΈξοδα[[#This Row],[Προηγούμενη περίοδος]]<0),-((ΛειτουργικάΈξοδα[[#This Row],[Τρέχουσα περίοδος]]/ΛειτουργικάΈξοδα[[#This Row],[Προηγούμενη περίοδος]])-1),(ΛειτουργικάΈξοδα[[#This Row],[Τρέχουσα περίοδος]]/ΛειτουργικάΈξοδα[[#This Row],[Προηγούμενη περίοδος]])-1))),\"-\")","v":{"v":0,"d":"0.00%"}},{"$f":"IFERROR(IF(ΛειτουργικάΈξοδα[[#This Row],[Προϋπολογισμός]]=ΛειτουργικάΈξοδα[[#This Row],[Τρέχουσα περίοδος]],0,IF(ΛειτουργικάΈξοδα[[#This Row],[Τρέχουσα περίοδος]]>ΛειτουργικάΈξοδα[[#This Row],[Προϋπολογισμός]],ABS((ΛειτουργικάΈξοδα[[#This Row],[Τρέχουσα περίοδος]]/ΛειτουργικάΈξοδα[[#This Row],[Προϋπολογισμός]])-1),IF(AND(ΛειτουργικάΈξοδα[[#This Row],[Τρέχουσα περίοδος]]<ΛειτουργικάΈξοδα[[#This Row],[Προϋπολογισμός]],ΛειτουργικάΈξοδα[[#This Row],[Προϋπολογισμός]]<0),-((ΛειτουργικάΈξοδα[[#This Row],[Τρέχουσα περίοδος]]/ΛειτουργικάΈξοδα[[#This Row],[Προϋπολογισμός]])-1),(ΛειτουργικάΈξοδα[[#This Row],[Τρέχουσα περίοδος]]/ΛειτουργικάΈξοδα[[#This Row],[Προϋπολογισμός]])-1))),\"-\")","v":{"v":0,"d":"0.00%"}}]
[null,"Γενικά και διαχείριση","Άλλα έξοδα (προσδιορίστε)",{"$nulls":3},{"$f":"IFERROR(IF(Έσοδα_πωλήσεων=0,\"-\",ΛειτουργικάΈξοδα[[#This Row],[Τρέχουσα περίοδος]]/Έσοδα_πωλήσεων),\"-\")","v":"-"},{"$f":"IFERROR(IF(ΛειτουργικάΈξοδα[[#This Row],[Προηγούμενη περίοδος]]=ΛειτουργικάΈξοδα[[#This Row],[Τρέχουσα περίοδος]],0,IF(ΛειτουργικάΈξοδα[[#This Row],[Τρέχουσα περίοδος]]>ΛειτουργικάΈξοδα[[#This Row],[Προηγούμενη περίοδος]],ABS((ΛειτουργικάΈξοδα[[#This Row],[Τρέχουσα περίοδος]]/ΛειτουργικάΈξοδα[[#This Row],[Προηγούμενη περίοδος]])-1),IF(AND(ΛειτουργικάΈξοδα[[#This Row],[Τρέχουσα περίοδος]]<ΛειτουργικάΈξοδα[[#This Row],[Προηγούμενη περίοδος]],ΛειτουργικάΈξοδα[[#This Row],[Προηγούμενη περίοδος]]<0),-((ΛειτουργικάΈξοδα[[#This Row],[Τρέχουσα περίοδος]]/ΛειτουργικάΈξοδα[[#This Row],[Προηγούμενη περίοδος]])-1),(ΛειτουργικάΈξοδα[[#This Row],[Τρέχουσα περίοδος]]/ΛειτουργικάΈξοδα[[#This Row],[Προηγούμενη περίοδος]])-1))),\"-\")","v":{"v":0,"d":"0.00%"}},{"$f":"IFERROR(IF(ΛειτουργικάΈξοδα[[#This Row],[Προϋπολογισμός]]=ΛειτουργικάΈξοδα[[#This Row],[Τρέχουσα περίοδος]],0,IF(ΛειτουργικάΈξοδα[[#This Row],[Τρέχουσα περίοδος]]>ΛειτουργικάΈξοδα[[#This Row],[Προϋπολογισμός]],ABS((ΛειτουργικάΈξοδα[[#This Row],[Τρέχουσα περίοδος]]/ΛειτουργικάΈξοδα[[#This Row],[Προϋπολογισμός]])-1),IF(AND(ΛειτουργικάΈξοδα[[#This Row],[Τρέχουσα περίοδος]]<ΛειτουργικάΈξοδα[[#This Row],[Προϋπολογισμός]],ΛειτουργικάΈξοδα[[#This Row],[Προϋπολογισμός]]<0),-((ΛειτουργικάΈξοδα[[#This Row],[Τρέχουσα περίοδος]]/ΛειτουργικάΈξοδα[[#This Row],[Προϋπολογισμός]])-1),(ΛειτουργικάΈξοδα[[#This Row],[Τρέχουσα περίοδος]]/ΛειτουργικάΈξοδα[[#This Row],[Προϋπολογισμός]])-1))),\"-\")","v":{"v":0,"d":"0.00%"}}]
[null,"Γενικά και διαχείριση","Άλλα έξοδα (προσδιορίστε)",{"$nulls":3},{"$f":"IFERROR(IF(Έσοδα_πωλήσεων=0,\"-\",ΛειτουργικάΈξοδα[[#This Row],[Τρέχουσα περίοδος]]/Έσοδα_πωλήσεων),\"-\")","v":"-"},{"$f":"IFERROR(IF(ΛειτουργικάΈξοδα[[#This Row],[Προηγούμενη περίοδος]]=ΛειτουργικάΈξοδα[[#This Row],[Τρέχουσα περίοδος]],0,IF(ΛειτουργικάΈξοδα[[#This Row],[Τρέχουσα περίοδος]]>ΛειτουργικάΈξοδα[[#This Row],[Προηγούμενη περίοδος]],ABS((ΛειτουργικάΈξοδα[[#This Row],[Τρέχουσα περίοδος]]/ΛειτουργικάΈξοδα[[#This Row],[Προηγούμενη περίοδος]])-1),IF(AND(ΛειτουργικάΈξοδα[[#This Row],[Τρέχουσα περίοδος]]<ΛειτουργικάΈξοδα[[#This Row],[Προηγούμενη περίοδος]],ΛειτουργικάΈξοδα[[#This Row],[Προηγούμενη περίοδος]]<0),-((ΛειτουργικάΈξοδα[[#This Row],[Τρέχουσα περίοδος]]/ΛειτουργικάΈξοδα[[#This Row],[Προηγούμενη περίοδος]])-1),(ΛειτουργικάΈξοδα[[#This Row],[Τρέχουσα περίοδος]]/ΛειτουργικάΈξοδα[[#This Row],[Προηγούμενη περίοδος]])-1))),\"-\")","v":{"v":0,"d":"0.00%"}},{"$f":"IFERROR(IF(ΛειτουργικάΈξοδα[[#This Row],[Προϋπολογισμός]]=ΛειτουργικάΈξοδα[[#This Row],[Τρέχουσα περίοδος]],0,IF(ΛειτουργικάΈξοδα[[#This Row],[Τρέχουσα περίοδος]]>ΛειτουργικάΈξοδα[[#This Row],[Προϋπολογισμός]],ABS((ΛειτουργικάΈξοδα[[#This Row],[Τρέχουσα περίοδος]]/ΛειτουργικάΈξοδα[[#This Row],[Προϋπολογισμός]])-1),IF(AND(ΛειτουργικάΈξοδα[[#This Row],[Τρέχουσα περίοδος]]<ΛειτουργικάΈξοδα[[#This Row],[Προϋπολογισμός]],ΛειτουργικάΈξοδα[[#This Row],[Προϋπολογισμός]]<0),-((ΛειτουργικάΈξοδα[[#This Row],[Τρέχουσα περίοδος]]/ΛειτουργικάΈξοδα[[#This Row],[Προϋπολογισμός]])-1),(ΛειτουργικάΈξοδα[[#This Row],[Τρέχουσα περίοδος]]/ΛειτουργικάΈξοδα[[#This Row],[Προϋπολογισμός]])-1))),\"-\")","v":{"v":0,"d":"0.00%"}}]
[null,"Συνολικά λειτουργικά έξοδα",null,{"$f":"SUBTOTAL(109,ΛειτουργικάΈξοδα[Προηγούμενη περίοδος])","v":0},{"$f":"SUBTOTAL(109,ΛειτουργικάΈξοδα[Προϋπολογισμός])","v":0},{"$f":"SUBTOTAL(109,ΛειτουργικάΈξοδα[Τρέχουσα περίοδος])","v":0},{"$f":"SUBTOTAL(109,ΛειτουργικάΈξοδα[Τρέχουσα περίοδος ως ποσοστό των πωλήσεων])","v":{"v":0,"d":"0.00%"}},{"$f":"SUBTOTAL(109,ΛειτουργικάΈξοδα[Ποσοστό μεταβολής από την προηγούμενη περίοδο])","v":{"v":0,"d":"0.00%"}},{"$f":"SUBTOTAL(109,ΛειτουργικάΈξοδα[Ποσοστό μεταβολής από τον προϋπολογισμό])","v":{"v":0,"d":"0.00%"}}]

{"sheet":"Φόροι","index":4,"n_rows":10,"n_cols":9,"rows_kept":10,"merged":[[0,7,2,8]]}
[null,{"$f":"Τίτλος_Βιβλίου_εργασίας","v":"Κατάσταση κερδών και ζημιών"}]
[null,{"$f":"Επωνυμία_εταιρείας","v":"Επωνυμία εταιρείας"},"Δηλωμένο σε χιλιάδες"]
[null,"Φόροι",{"$f":"IFERROR(Φόροι[[#Totals],[Τρέχουσα περίοδος]],\"-\")","v":0}]
[null,"Τύπος","Περιγραφή","Προηγούμενη περίοδος","Προϋπολογισμός","Τρέχουσα περίοδος","Τρέχουσα περίοδος ως ποσοστό των πωλήσεων","Ποσοστό μεταβολής από την προηγούμενη περίοδο","Ποσοστό μεταβολής από τον προϋπολογισμό"]
[null,"Φόροι","Φόροι εισοδήματος",{"$nulls":3},{"$f":"IFERROR(IF(Έσοδα_πωλήσεων=0,\"-\",Φόροι[[#This Row],[Τρέχουσα περίοδος]]/Έσοδα_πωλήσεων),\"-\")","v":"-"},{"$f":"IFERROR(IF(Φόροι[[#This Row],[Προηγούμενη περίοδος]]=Φόροι[[#This Row],[Τρέχουσα περίοδος]],0,IF(Φόροι[[#This Row],[Τρέχουσα περίοδος]]>Φόροι[[#This Row],[Προηγούμενη περίοδος]],ABS((Φόροι[[#This Row],[Τρέχουσα περίοδος]]/Φόροι[[#This Row],[Προηγούμενη περίοδος]])-1),IF(AND(Φόροι[[#This Row],[Τρέχουσα περίοδος]]<Φόροι[[#This Row],[Προηγούμενη περίοδος]],Φόροι[[#This Row],[Προηγούμενη περίοδος]]<0),-((Φόροι[[#This Row],[Τρέχουσα περίοδος]]/Φόροι[[#This Row],[Προηγούμενη περίοδος]])-1),(Φόροι[[#This Row],[Τρέχουσα περίοδος]]/Φόροι[[#This Row],[Προηγούμενη περίοδος]])-1))),\"-\")","v":{"v":0,"d":"0.00%"}},{"$f":"IFERROR(IF(Φόροι[[#This Row],[Προϋπολογισμός]]=Φόροι[[#This Row],[Τρέχουσα περίοδος]],0,IF(Φόροι[[#This Row],[Τρέχουσα περίοδος]]>Φόροι[[#This Row],[Προϋπολογισμός]],ABS((Φόροι[[#This Row],[Τρέχουσα περίοδος]]/Φόροι[[#This Row],[Προϋπολογισμός]])-1),IF(AND(Φόροι[[#This Row],[Τρέχουσα περίοδος]]<Φόροι[[#This Row],[Προϋπολογισμός]],Φόροι[[#This Row],[Προϋπολογισμός]]<0),-((Φόροι[[#This Row],[Τρέχουσα περίοδος]]/Φόροι[[#This Row],[Προϋπολογισμός]])-1),(Φόροι[[#This Row],[Τρέχουσα περίοδος]]/Φόροι[[#This Row],[Προϋπολογισμός]])-1))),\"-\")","v":{"v":0,"d":"0.00%"}}]
[null,"Φόροι","Φόροι μισθοδοσίας",{"$nulls":3},{"$f":"IFERROR(IF(Έσοδα_πωλήσεων=0,\"-\",Φόροι[[#This Row],[Τρέχουσα περίοδος]]/Έσοδα_πωλήσεων),\"-\")","v":"-"},{"$f":"IFERROR(IF(Φόροι[[#This Row],[Προηγούμενη περίοδος]]=Φόροι[[#This Row],[Τρέχουσα περίοδος]],0,IF(Φόροι[[#This Row],[Τρέχουσα περίοδος]]>Φόροι[[#This Row],[Προηγούμενη περίοδος]],ABS((Φόροι[[#This Row],[Τρέχουσα περίοδος]]/Φόροι[[#This Row],[Προηγούμενη περίοδος]])-1),IF(AND(Φόροι[[#This Row],[Τρέχουσα περίοδος]]<Φόροι[[#This Row],[Προηγούμενη περίοδος]],Φόροι[[#This Row],[Προηγούμενη περίοδος]]<0),-((Φόροι[[#This Row],[Τρέχουσα περίοδος]]/Φόροι[[#This Row],[Προηγούμενη περίοδος]])-1),(Φόροι[[#This Row],[Τρέχουσα περίοδος]]/Φόροι[[#This Row],[Προηγούμενη περίοδος]])-1))),\"-\")","v":{"v":0,"d":"0.00%"}},{"$f":"IFERROR(IF(Φόροι[[#This Row],[Προϋπολογισμός]]=Φόροι[[#This Row],[Τρέχουσα περίοδος]],0,IF(Φόροι[[#This Row],[Τρέχουσα περίοδος]]>Φόροι[[#This Row],[Προϋπολογισμός]],ABS((Φόροι[[#This Row],[Τρέχουσα περίοδος]]/Φόροι[[#This Row],[Προϋπολογισμός]])-1),IF(AND(Φόροι[[#This Row],[Τρέχουσα περίοδος]]<Φόροι[[#This Row],[Προϋπολογισμός]],Φόροι[[#This Row],[Προϋπολογισμός]]<0),-((Φόροι[[#This Row],[Τρέχουσα περίοδος]]/Φόροι[[#This Row],[Προϋπολογισμός]])-1),(Φόροι[[#This Row],[Τρέχουσα περίοδος]]/Φόροι[[#This Row],[Προϋπολογισμός]])-1))),\"-\")","v":{"v":0,"d":"0.00%"}}]
[null,"Φόροι","Φόροι ακινήτων",{"$nulls":3},{"$f":"IFERROR(IF(Έσοδα_πωλήσεων=0,\"-\",Φόροι[[#This Row],[Τρέχουσα περίοδος]]/Έσοδα_πωλήσεων),\"-\")","v":"-"},{"$f":"IFERROR(IF(Φόροι[[#This Row],[Προηγούμενη περίοδος]]=Φόροι[[#This Row],[Τρέχουσα περίοδος]],0,IF(Φόροι[[#This Row],[Τρέχουσα περίοδος]]>Φόροι[[#This Row],[Προηγούμενη περίοδος]],ABS((Φόροι[[#This Row],[Τρέχουσα περίοδος]]/Φόροι[[#This Row],[Προηγούμενη περίοδος]])-1),IF(AND(Φόροι[[#This Row],[Τρέχουσα περίοδος]]<Φόροι[[#This Row],[Προηγούμενη περίοδος]],Φόροι[[#This Row],[Προηγούμενη περίοδος]]<0),-((Φόροι[[#This Row],[Τρέχουσα περίοδος]]/Φόροι[[#This Row],[Προηγούμενη περίοδος]])-1),(Φόροι[[#This Row],[Τρέχουσα περίοδος]]/Φόροι[[#This Row],[Προηγούμενη περίοδος]])-1))),\"-\")","v":{"v":0,"d":"0.00%"}},{"$f":"IFERROR(IF(Φόροι[[#This Row],[Προϋπολογισμός]]=Φόροι[[#This Row],[Τρέχουσα περίοδος]],0,IF(Φόροι[[#This Row],[Τρέχουσα περίοδος]]>Φόροι[[#This Row],[Προϋπολογισμός]],ABS((Φόροι[[#This Row],[Τρέχουσα περίοδος]]/Φόροι[[#This Row],[Προϋπολογισμός]])-1),IF(AND(Φόροι[[#This Row],[Τρέχουσα περίοδος]]<Φόροι[[#This Row],[Προϋπολογισμός]],Φόροι[[#This Row],[Προϋπολογισμός]]<0),-((Φόροι[[#This Row],[Τρέχουσα περίοδος]]/Φόροι[[#This Row],[Προϋπολογισμός]])-1),(Φόροι[[#This Row],[Τρέχουσα περίοδος]]/Φόροι[[#This Row],[Προϋπολογισμός]])-1))),\"-\")","v":{"v":0,"d":"0.00%"}}]
[null,"Φόροι","Άλλοι φόροι (προσδιορίστε)",{"$nulls":3},{"$f":"IFERROR(IF(Έσοδα_πωλήσεων=0,\"-\",Φόροι[[#This Row],[Τρέχουσα περίοδος]]/Έσοδα_πωλήσεων),\"-\")","v":"-"},{"$f":"IFERROR(IF(Φόροι[[#This Row],[Προηγούμενη περίοδος]]=Φόροι[[#This Row],[Τρέχουσα περίοδος]],0,IF(Φόροι[[#This Row],[Τρέχουσα περίοδος]]>Φόροι[[#This Row],[Προηγούμενη περίοδος]],ABS((Φόροι[[#This Row],[Τρέχουσα περίοδος]]/Φόροι[[#This Row],[Προηγούμενη περίοδος]])-1),IF(AND(Φόροι[[#This Row],[Τρέχουσα περίοδος]]<Φόροι[[#This Row],[Προηγούμενη περίοδος]],Φόροι[[#This Row],[Προηγούμενη περίοδος]]<0),-((Φόροι[[#This Row],[Τρέχουσα περίοδος]]/Φόροι[[#This Row],[Προηγούμενη περίοδος]])-1),(Φόροι[[#This Row],[Τρέχουσα περίοδος]]/Φόροι[[#This Row],[Προηγούμενη περίοδος]])-1))),\"-\")","v":{"v":0,"d":"0.00%"}},{"$f":"IFERROR(IF(Φόροι[[#This Row],[Προϋπολογισμός]]=Φόροι[[#This Row],[Τρέχουσα περίοδος]],0,IF(Φόροι[[#This Row],[Τρέχουσα περίοδος]]>Φόροι[[#This Row],[Προϋπολογισμός]],ABS((Φόροι[[#This Row],[Τρέχουσα περίοδος]]/Φόροι[[#This Row],[Προϋπολογισμός]])-1),IF(AND(Φόροι[[#This Row],[Τρέχουσα περίοδος]]<Φόροι[[#This Row],[Προϋπολογισμός]],Φόροι[[#This Row],[Προϋπολογισμός]]<0),-((Φόροι[[#This Row],[Τρέχουσα περίοδος]]/Φόροι[[#This Row],[Προϋπολογισμός]])-1),(Φόροι[[#This Row],[Τρέχουσα περίοδος]]/Φόροι[[#This Row],[Προϋπολογισμός]])-1))),\"-\")","v":{"v":0,"d":"0.00%"}}]
[null,"Φόροι","Άλλοι φόροι (προσδιορίστε)",{"$nulls":3},{"$f":"IFERROR(IF(Έσοδα_πωλήσεων=0,\"-\",Φόροι[[#This Row],[Τρέχουσα περίοδος]]/Έσοδα_πωλήσεων),\"-\")","v":"-"},{"$f":"IFERROR(IF(Φόροι[[#This Row],[Προηγούμενη περίοδος]]=Φόροι[[#This Row],[Τρέχουσα περίοδος]],0,IF(Φόροι[[#This Row],[Τρέχουσα περίοδος]]>Φόροι[[#This Row],[Προηγούμενη περίοδος]],ABS((Φόροι[[#This Row],[Τρέχουσα περίοδος]]/Φόροι[[#This Row],[Προηγούμενη περίοδος]])-1),IF(AND(Φόροι[[#This Row],[Τρέχουσα περίοδος]]<Φόροι[[#This Row],[Προηγούμενη περίοδος]],Φόροι[[#This Row],[Προηγούμενη περίοδος]]<0),-((Φόροι[[#This Row],[Τρέχουσα περίοδος]]/Φόροι[[#This Row],[Προηγούμενη περίοδος]])-1),(Φόροι[[#This Row],[Τρέχουσα περίοδος]]/Φόροι[[#This Row],[Προηγούμενη περίοδος]])-1))),\"-\")","v":{"v":0,"d":"0.00%"}},{"$f":"IFERROR(IF(Φόροι[[#This Row],[Προϋπολογισμός]]=Φόροι[[#This Row],[Τρέχουσα περίοδος]],0,IF(Φόροι[[#This Row],[Τρέχουσα περίοδος]]>Φόροι[[#This Row],[Προϋπολογισμός]],ABS((Φόροι[[#This Row],[Τρέχουσα περίοδος]]/Φόροι[[#This Row],[Προϋπολογισμός]])-1),IF(AND(Φόροι[[#This Row],[Τρέχουσα περίοδος]]<Φόροι[[#This Row],[Προϋπολογισμός]],Φόροι[[#This Row],[Προϋπολογισμός]]<0),-((Φόροι[[#This Row],[Τρέχουσα περίοδος]]/Φόροι[[#This Row],[Προϋπολογισμός]])-1),(Φόροι[[#This Row],[Τρέχουσα περίοδος]]/Φόροι[[#This Row],[Προϋπολογισμός]])-1))),\"-\")","v":{"v":0,"d":"0.00%"}}]
[null,"Σύνολο φόρων",null,{"$f":"SUBTOTAL(109,Φόροι[Προηγούμενη περίοδος])","v":0},{"$f":"SUBTOTAL(109,Φόροι[Προϋπολογισμός])","v":0},{"$f":"SUBTOTAL(109,Φόροι[Τρέχουσα περίοδος])","v":0},{"$f":"IFERROR(SUBTOTAL(109,Φόροι[Τρέχουσα περίοδος ως ποσοστό των πωλήσεων]),\"-\")","v":{"v":0,"d":"0.00%"}},{"$f":"SUBTOTAL(109,Φόροι[Ποσοστό μεταβολής από την προηγούμενη περίοδο])","v":{"v":0,"d":"0.00%"}},{"$f":"SUBTOTAL(109,Φόροι[Ποσοστό μεταβολής από τον προϋπολογισμό])","v":{"v":0,"d":"0.00%"}}]

{"sheet":"Κατηγορίες","index":5,"n_rows":8,"n_cols":2,"rows_kept":8}
[null,"Κατηγορίες"]
[null,"Έσοδα πωλήσεων"]
[null,"Κόστος πωλήσεων"]
[null,"Εισόδημα"]
[null,"Πωλήσεις και μάρκετινγκ"]
[null,"Έρευνα και ανάπτυξη"]
[null,"Γενικά και διαχείριση"]
[null,"Φόροι"]